Cogmind - Beta 15 @@@ ROGUE MODE // 2025.05.09 @ 18:34:19 Player: Dosh Result: Destroyed by V021-t with Multirail Performance ------------- Evolutions (8) 4000 Regions Visited (30) 6000 Robots Destroyed (472) 2360 Value Destroyed (29399) 29399 Prototype IDs (65) 1300 Alien Tech Used (1) 200 Bonus (16353) 16353 TOTAL SCORE: 59612 Bonus ------- High Alert Combat Kills 2318 Follower Combat Kills 8048 Entered Garrisons 1800 Used RIF Installer 5500 Aligned with FarCom 300 Friendly Fire -1613 Cogmind --------- Core Integrity 0/1450 Matter 78/300 Energy 100/100 System Corruption 21% Temperature Cool (9) Movement Core (100) Ox1 Location -2/Protoforge Parts ------- > --- POWER (3) -------- (None) > --- PROPULSION (6) --- (None) > --- UTILITY (12) ----- Advanced Coolant Injector Experimental Coolant Injector Relay Coupler [NC] (13) Relay Coupler [Proto] (2) > --- WEAPON (2) ------- Molecular Scythe > --- INVENTORY (5) ---- Advanced Cooling System Relay Coupler [Swarmer] (31) Backup Laser VII Backup Laser VII Hypervelocity Multirail Peak State ------------ > --- POWER ------------ Particle Reactor Light Quantum Reactor Light Quantum Reactor > --- PROPULSION ------- Armored Heavy Treads Biometal Heavy Treads Biometal Heavy Treads > --- UTILITY ---------- Advanced Cryofiber Web Experimental Coolant Injector Cargo Storage Unit Experimental Targeting Computer Quantum Capacitor Advanced Remote Force Field Relay Coupler [NC] Relay Coupler [Sentry] Relay Coupler [Proto] Relay Coupler [Proto] > --- WEAPON ----------- Enhanced Nova Cannon Advanced Remote Datajack > --- INVENTORY -------- Quantum Reactor Light Quantum Reactor Improved Heavy Treads Armored Heavy Treads Experimental Heat Sink Advanced Cooling System Advanced Cooling System Advanced Coolant Injector Femtoactuators Experimental Weapon Shielding Improved Heavy Armor Plating Centrium Medium Armor Plating EM Shield Advanced Force Field Improved Hacking Suite Relay Coupler [Swarmer] Relay Coupler [Grunt] Relay Coupler [Proto] Drone Bay Dimensional Node Initializer Subatomic Replicator Tachyon Dispersion Ray Enhanced Nova Cannon Hypervelocity Multirail Gamma Bomb Array Advanced Remote Datajack Molecular Scythe [Rating: 187] Favorites ----------- Power Quantum Reactor Engine Improved Deuterium Engine Power Core Light Neutrino Core Reactor Quantum Reactor Propulsion Light Treads Treads Light Treads Leg Centrium Leg Wheel Armored Wheel Hover Unit Improved Antigrav System Flight Unit Improved Surge Thruster Utility Relay Coupler [NC] Device Experimental Cooling System Storage Cargo Storage Unit Processor Experimental Targeting Computer Hackware Relay Coupler [NC] Protection Layered Heavy Armor Plating Artifact Phase Redirector Weapon Enhanced Nova Cannon Energy Gun Heavy Beamcaster Energy Cannon Enhanced Nova Cannon Ballistic Gun Heavy Assault Rifle Ballistic Cannon Light Cannon Launcher Heavy Missile Launcher Special Weapon Advanced Remote Datajack Slashing Weapon Longsword +1 Special Melee Weapon Datajack Build | -11 -10 -10 -10 -9 -8 -8 -8 -8 -7 -7 -7 -7 -6 -6 -5 -5 -4 -4 -4 -4 -3 -3 -3 -3 -3 -2 -2 -2 -2 -2 ------- Run | Yrd Mat Min Exi Min Mat Gar Mat Gar Fac Was Fac Gar Fac Gar Fac Gar Fac Was Fac Gar Res Gar Res Qua Gar Res Gar Res Tes Frg Slots Evolved 16 | . . . . . 4 . . . 2 . . . 2 . 2 . 2 . . . 2 . . . . 2 . . . . Power 2 | . . . . . . . . . . . . . 1 . . . . . . . . . . . . 1 . . . . Propulsion 4 | . . . . . 1 . . . 1 . . . . . . . . . . . 2 . . . . . . . . . Utility 10 | . . . . . 3 . . . 1 . . . 1 . 2 . 2 . . . . . . . . 1 . . . . Weapon . | . . . . . . . . . . . . . . . . . . . . . . . . . . . . . . . Parts Attached 311 | 6 8 2 1 2 27 6 18 10 . 13 . 5 4 12 12 13 2 12 13 22 4 15 17 19 18 . 7 11 12 20 Power 35 | 1 1 1 . . 2 1 1 1 . 2 . . . 2 1 2 . 2 . 3 . . 1 2 4 . . 2 3 3 Engine 9 | 1 1 1 . . 2 1 1 1 . . . . . 1 . . . . . . . . . . . . . . . . Core 4 | . . . . . . . . . . . . . . . 1 2 . . . . . . . . . . . . 1 . Reactor 22 | . . . . . . . . . . 2 . . . 1 . . . 2 . 3 . . 1 2 4 . . 2 2 3 Propulsion 68 | 2 1 . . . 9 1 6 2 . 3 . 2 . 2 1 5 1 1 2 6 4 6 2 3 2 . . 2 1 4 Treads 50 | 2 1 . . . 9 1 5 2 . 3 . 2 . . 1 2 . 1 2 3 . 5 2 2 2 . . 2 1 2 Leg 3 | . . . . . . . . . . . . . . . . . . . . 2 . . . 1 . . . . . . Wheel 9 | . . . . . . . 1 . . . . . . 2 . . . . . 1 4 1 . . . . . . . . Hover 3 | . . . . . . . . . . . . . . . . . 1 . . . . . . . . . . . . 2 Flight 3 | . . . . . . . . . . . . . . . . 3 . . . . . . . . . . . . . . Utility 152 | 1 3 1 1 . 9 3 8 5 . 5 . 3 2 4 9 5 1 6 10 11 . 7 11 13 10 . 5 6 4 9 Device 54 | . . . . . 5 1 3 1 . 2 . 1 1 . 3 . . 1 4 5 . 2 2 8 2 . 3 4 2 4 Storage 8 | 1 1 . 1 . . . . . . . . 1 . . . . 1 . 1 . . . 1 . 1 . . . . . Processor 3 | . . . . . . . . . . . . . . . . . . . . . . . 1 1 1 . . . . . Hackware 49 | . . . . . 1 . 3 3 . 1 . 1 1 4 2 5 . . . 4 . 5 4 . 6 . 2 2 2 3 Protection 37 | . 2 1 . . 3 2 2 1 . 2 . . . . 4 . . 5 5 2 . . 3 3 . . . . . 2 Artifact 1 | . . . . . . . . . . . . . . . . . . . . . . . . 1 . . . . . . Weapon 56 | 2 3 . . 2 7 1 3 2 . 3 . . 2 4 1 1 . 3 1 2 . 2 3 1 2 . 2 1 4 4 Energy Gun 5 | . . . . . . . . . . 2 . . . . . . . 2 . . . . . . . . . . 1 . Energy Cannon 16 | . . . . . 2 1 1 . . 1 . . . 2 . . . . . 2 . 1 1 . 1 . 1 . 2 1 Ballistic Gun 7 | 2 . . . 2 3 . . . . . . . . . . . . . . . . . . . . . . . . . Ballistic Cannon 6 | . 2 . . . 1 . . . . . . . 1 1 1 . . . . . . . . . . . . . . . Launcher 4 | . . . . . . . 1 1 . . . . . . . . . 1 . . . . . 1 . . . . . . Special Weapon 13 | . . . . . . . . 1 . . . . 1 1 . . . . 1 . . 1 2 . 1 . 1 1 1 2 Impact Weapon . | . . . . . . . . . . . . . . . . . . . . . . . . . . . . . . . Slashing Weapon 3 | . . . . . 1 . . . . . . . . . . 1 . . . . . . . . . . . . . 1 Piercing Weapon . | . . . . . . . . . . . . . . . . . . . . . . . . . . . . . . . Special Melee Weapon 2 | . 1 . . . . . 1 . . . . . . . . . . . . . . . . . . . . . . . Unidentified Prototypes 17 | . . . . . 1 . 1 . . . . . . . . . . . 1 . . . 1 6 2 . . . 2 3 Corrupted Parts 2 | . . . . . . . . . . . . . . . . . . . . . . . . . . . . . . 2 System Corruption 6 | . . . . . . . . . . . . . . . . . . . . . . . . . . . . . . 6 Parts Lost 105 | . . 1 . . 3 6 10 6 . . . 1 . 2 5 19 1 . . 4 1 3 4 7 2 1 3 1 1 24 Power 18 | . . 1 . . 1 1 . 1 . . . . . . . 6 . . . . . . . 1 . . 1 1 . 5 Propulsion 33 | . . . . . . 3 4 2 . . . . . . 3 6 1 . . 3 1 . . 2 . . . . 1 7 Utility 41 | . . . . . 2 1 4 2 . . . 1 . 2 1 4 . . . . . 2 4 4 1 1 2 . . 10 Weapon 13 | . . . . . . 1 2 1 . . . . . . 1 3 . . . 1 . 1 . . 1 . . . . 2 Highest Loss Streak 15 | . . 1 . . 1 3 2 5 . . . 1 . 1 3 9 1 . . 2 1 2 2 3 1 1 2 1 1 15 To Critical Strikes 6 | . . . . . . 1 . . . . . . . . . 1 . . . . . . . 1 . . . . . 3 Average Backups 18 | . 6 14 15 14 16 17 17 17 19 17 17 17 24 25 24 13 4 4 9 13 14 14 15 17 26 26 22 25 26 23 Power 1 | . 1 1 1 1 1 1 1 . . 1 2 2 1 1 2 1 1 2 2 2 2 1 2 2 2 2 1 2 2 1 Propulsion 1 | . 1 2 2 2 3 3 1 1 2 1 2 1 2 2 2 . . . . 1 1 . . 1 3 2 2 2 2 1 Utility 9 | . 1 4 5 6 5 6 8 9 11 9 9 10 13 14 12 8 2 1 3 6 7 7 8 7 14 16 13 14 14 12 Weapon 4 | . 1 5 6 4 5 5 5 4 4 4 3 3 6 5 4 2 1 1 2 1 2 3 2 4 2 3 3 3 4 5 Tool/Special . | . . . . . . . . . . . . . . . . . . . . . . . . . . . . . . . Unused Backups 59 | . . 2 1 . 4 . 1 . . 1 . 9 1 2 1 12 1 2 3 2 . 3 . 1 4 . . 4 1 4 Power 9 | . . . . . . . . . . 1 . . . . . . . . 2 1 . 1 . . 2 . . 2 . . Propulsion 9 | . . . . . 2 . . . . . . 3 . . . . . . 1 1 . . . . 1 . . . 1 . Utility 30 | . . 1 . . 1 . . . . . . 6 . 1 1 12 1 1 . . . 1 . . 1 . . 2 . 2 Weapon 9 | . . 1 1 . 1 . 1 . . . . . . 1 . . . 1 . . . 1 . 1 . . . . . 1 Tool/Special 2 | . . . . . . . . . . . . . 1 . . . . . . . . . . . . . . . . 1 Average Slot Usage (%) 79 | . 94 99 78 94 92 89 95 94 91 72 61 62 69 68 75 56 28 57 81 88 87 83 79 78 71 72 77 77 76 73 Engine 3 | . 14 13 14 14 9 8 9 8 7 3 . . . 2 3 . . 1 . . . . . . . . . . . . Reactor 7 | . . . . . . . . . . 3 7 7 13 9 5 2 . 7 10 10 9 9 9 8 9 13 12 12 10 10 Treads 16 | . 27 28 28 28 27 27 24 25 23 18 15 15 13 11 5 7 5 4 13 11 6 15 14 13 13 13 12 12 12 12 Device 11 | . . . . . 5 9 8 3 6 7 7 8 13 8 10 7 . 1 13 22 26 19 14 19 14 12 16 16 16 15 Storage 6 | . 14 14 14 14 9 9 9 9 7 7 7 7 6 6 5 3 . . 4 5 4 4 4 4 4 4 4 4 4 3 Hackware 10 | . . . . . 5 . 7 27 30 11 . . 5 8 14 12 15 15 10 14 10 17 18 7 11 13 13 16 15 15 Protection 8 | . 8 14 14 14 18 17 17 . . 3 7 7 5 6 5 5 . 12 15 7 4 3 8 9 4 3 3 1 . 1 Energy Gun 1 | . . . . . . . . . . 3 15 12 . . . . . 5 7 3 . . . . . . . . . . Energy Cannon 3 | . . . . . 5 8 9 5 5 10 . . 1 1 1 2 . . . 2 4 7 6 4 3 4 4 4 3 3 Ballistic Gun 1 | . 8 . . 18 10 . 2 4 1 . . . . . . . . . . . . . . . . . . . . . Ballistic Cannon 2 | . 19 28 . . 1 9 3 . . . . . 2 1 2 . . . . . . . . . . . . . . . Special Weapon 1 | . . . . . . . . 4 5 1 . . 3 2 2 . . . . . . . 2 2 3 4 4 4 4 3 Peak Build Rating 187 | 6 9 13 13 16 47 46 44 41 41 79 79 82 96 97 95 95 30 106 123 136 126 146 140 165 158 172 174 175 181 187 Average Rating 97 | 4 7 11 12 14 32 41 39 33 37 62 79 78 92 89 88 63 25 85 111 117 123 128 132 146 153 171 168 171 174 171 On Entrance 81 | . 6 9 13 13 16 38 44 34 41 38 79 79 82 96 80 86 22 29 105 114 122 124 129 137 158 158 160 168 175 177 Naked Turns 67 | . . . . . . . . . . . . . . . . 67 . . . . . . . . . . . . . . Heaviest Build 252 | 13 32 32 47 52 83 91 92 72 62 121 113 188 228 228 221 201 13 121 138 136 119 129 149 151 240 252 243 243 245 238 Greatest Support 225 | 40 40 40 40 40 76 84 84 70 62 145 140 150 150 150 150 150 20 75 121 121 58 210 215 215 225 225 225 225 215 210 Greatest Overweight (x) 9 | . . . 1 1 1 1 1 1 . . . 1 1 8 9 8 4 1 1 2 5 3 . 1 1 1 1 1 1 2 Average Overweight (x) . | . . . . 1 . 1 . . . . . . 1 2 7 . . . . 1 2 . . . . 1 . 1 1 . Largest Inventory Capacity 30 | 8 15 15 20 20 20 20 20 20 20 20 20 30 30 30 30 30 10 5 15 15 15 15 20 20 30 30 30 30 30 30 Average Capacity 21 | 7 9 15 15 20 20 20 20 20 20 20 20 21 30 30 30 20 5 5 13 15 15 15 18 20 29 30 30 30 30 29 Most Carried 30 | 1 13 15 15 15 20 20 20 20 20 20 20 26 30 30 30 27 5 5 15 15 15 15 20 20 30 29 28 30 30 30 Average Carried 19 | . 6 14 14 14 17 17 17 17 19 19 20 19 27 29 28 15 4 4 10 14 14 14 16 17 28 28 25 28 29 26 Final Capacity 30 | 8 15 15 20 20 20 20 20 20 20 20 20 30 30 30 30 5 5 5 15 15 15 15 20 20 30 30 30 30 30 5 Final Carried 30 | 1 13 15 15 14 20 15 18 20 20 20 20 26 30 30 24 4 5 5 15 15 15 15 19 20 30 28 27 30 30 5 Class Distribution -------------------- 56% | Botlord-Mutant 26% | Mutant 10% | Bothacker-Mutant 7% | Scavenger-Mutant Dominant Class ---------------- Mutant | -10/Materials Mutant | -10/Mines Mutant | -10/Exiles Mutant | -9/Mines Mutant | -8/Materials Mutant | -8/Garrison Mutant | -8/Materials Bothacker-Mutant | -8/Garrison Bothacker-Mutant | -7/Factory Bothacker-Mutant | -7/Waste Bothacker-Mutant | -7/Factory Bothacker-Mutant | -7/Garrison Botlord-Mutant | -6/Factory Botlord-Mutant | -6/Garrison Botlord-Mutant | -5/Factory Botlord-Mutant | -5/Garrison Mutant | -4/Factory Mutant | -4/Waste Scavenger-Mutant | -4/Factory Botlord-Mutant | -4/Garrison Botlord-Mutant | -3/Research Botlord-Mutant | -3/Garrison Botlord-Mutant | -3/Research Botlord-Mutant | -3/Quarantine Botlord-Mutant | -3/Garrison Botlord-Mutant | -2/Research Botlord-Mutant | -2/Garrison Botlord-Mutant | -2/Research Botlord-Mutant | -2/Testing Botlord-Mutant | -2/Protoforge Resources | -11 -10 -10 -10 -9 -8 -8 -8 -8 -7 -7 -7 -7 -6 -6 -5 -5 -4 -4 -4 -4 -3 -3 -3 -3 -3 -2 -2 -2 -2 -2 ----------- Run | Yrd Mat Min Exi Min Mat Gar Mat Gar Fac Was Fac Gar Fac Gar Fac Gar Fac Was Fac Gar Res Gar Res Qua Gar Res Gar Res Tes Frg Matter Collected 12140 | 211 609 141 . 13 779 646 823 355 198 218 . 100 220 697 609 708 . 175 392 432 50 535 573 713 808 . 655 387 364 729 Remotely . | . . . . . . . . . . . . . . . . . . . . . . . . . . . . . . . Salvage Created 24314 | . 866 63 . 13 1348 889 1475 368 103 1388 . 1467 387 753 632 603 20 131 1424 1420 368 863 1129 1496 1941 . 918 1915 842 1492 Parts 1104 | . 58 8 . . 72 63 87 15 10 29 . 38 26 21 18 27 3 3 55 52 30 29 69 92 76 . 34 88 37 64 Haulers Intercepted 10 | . 2 . . . 2 . 2 . . . . . . . . . . . 3 . . . . . . . . 1 . . Recyclers Shooed 6 | . . . . . . . . . . . . . . . . . . . 2 . 1 . . . . . . 3 . . Parts Field Recycled . | . . . . . . . . . . . . . . . . . . . . . . . . . . . . . . . Retrieved Matter . | . . . . . . . . . . . . . . . . . . . . . . . . . . . . . . . Parts Self-Destructed . | . . . . . . . . . . . . . . . . . . . . . . . . . . . . . . . Prevented . | . . . . . . . . . . . . . . . . . . . . . . . . . . . . . . . Kills | -11 -10 -10 -10 -9 -8 -8 -8 -8 -7 -7 -7 -7 -6 -6 -5 -5 -4 -4 -4 -4 -3 -3 -3 -3 -3 -2 -2 -2 -2 -2 ------- Run | Yrd Mat Min Exi Min Mat Gar Mat Gar Fac Was Fac Gar Fac Gar Fac Gar Fac Was Fac Gar Res Gar Res Qua Gar Res Gar Res Tes Frg Combat Hostiles Destroyed 387 | . 21 6 . 1 29 27 40 7 4 4 . 14 11 13 13 13 . . 20 26 3 12 17 24 20 . 14 20 9 19 Melee 34 | . . . . . 1 1 2 . . . . . 2 . . 6 . . . 13 3 5 . 1 . . . . . . Guns 61 | . 9 . . 1 14 . 1 1 . . . 12 . . . . . . 14 9 . . . . . . . . . . Cannons 214 | . 12 6 . . 13 26 15 5 1 3 . . 8 9 12 5 . . . 1 . 6 16 13 17 . 11 15 8 12 AOE 48 | . . . . . 1 . 21 1 3 . . . . 1 1 2 . . 4 1 . . . 8 1 . . 1 . 3 Classes Destroyed 24 | . 7 . . 1 2 3 5 . . 2 . . . . . 1 . . . 1 . . . 1 . . . . . 1 Worker 17 | . 1 . . . 2 . 3 . . . . . 3 . 1 . . . 4 . . . 1 . . . . 1 1 . Builder 19 | . . . . . 1 . 4 . . . . . 1 . 1 . . . 5 . 4 . 1 2 . . . . . . Tunneler 2 | . . . . . . . 1 . . . . . . . . . 1 . . . . . . . . . . . . . Hauler 10 | . 2 . . . 2 . 2 . . . . . . . . . . . 3 . . . . . . . . 1 . . Recycler 6 | . 1 . . . . . 1 . . . . . . . 1 . . . . . 1 . . . . . . 2 . . Mechanic 2 | . . . . . . . 1 . . . . . . . . . . . . . . . . . . . . . 1 . Operator 3 | . 2 . . . 1 . . . . . . . . . . . . . . . . . . . . . . . . . Watcher 11 | . 2 . . . . 1 2 . . . . . 1 . . . . . . 1 . . . 1 . . . . 3 . Swarmer 85 | . 6 6 . . 7 9 7 . 3 . . 3 4 2 . 3 . . 5 10 . 4 3 4 5 . 3 1 . . Cutter 2 | . . . . . . . . . . . . . . . . 2 . . . . . . . . . . . . . . Grunt 128 | . 15 . . . 17 8 18 2 . . . 5 1 3 5 5 . . 8 6 . 5 1 9 6 . 2 7 2 3 Brawler 6 | . . . . . . . 2 . . . . 1 . . 2 . . . . . . . 1 . . . . . . . Duelist 8 | . . . . . . . 4 2 . . . . . 1 . . . . . . . . . . . . . . 1 . Protector 1 | . . . . . . . 1 . . . . . . . . . . . . . . . . . . . . . . . Sentry 37 | . . . . . 5 3 6 2 1 . . 4 . . 1 1 . . . 6 . 1 . . 4 . 1 1 1 . Demolisher 3 | . . . . . . . . . . . . 1 . 1 . . . . . . . . . . . . 1 . . . Specialist 3 | . . . . . . 1 . . . . . . . 2 . . . . . . . . . . . . . . . . Hunter 32 | . . . . . . 4 2 . . . . . . 3 3 3 . . . 3 . . 3 3 . . . 2 1 5 Programmer 71 | . . . . . . 2 . 2 . . . . 6 3 2 . . . 7 . 3 1 9 7 6 . 5 8 5 5 Behemoth 8 | . . . . . . . . . . . . . . . . . . . . 1 . 2 . . 1 . 2 1 . 1 Compactor 4 | . . . . . . . . . . 4 . . . . . . . . . . . . . . . . . . . . Hotshot 3 | . . . . . . . . . . . . . . . . . . . . . . . . . . . . . . 3 Alpha 7 2 | . . . . . . . . . . . . . . . . . . . . . . . . 1 . . . . . 1 V-Series 2 | . . . . . . . . . . . . . . . . . . . . . . . . . . . . . . 2 Assembled 1 | . . . . 1 . . . . . . . . . . . . . . . . . . . . . . . . . . Wasp 2 | . . . . . . . . . . 2 . . . . . . . . . . . . . . . . . . . . Thug 1 | . . . . . . . . . . . . 1 . . . . . . . . . . . . . . . . . . Martyr 4 | . . . . . . . . . . 2 . . . . . . . 2 . . . . . . . . . . . . Best Kill Streak 11 | . 7 3 . 1 4 5 11 3 4 1 . 7 3 4 5 3 1 . 9 5 4 4 3 5 3 . 6 4 3 4 Combat Bots Only 9 | . 5 3 . 1 4 5 9 3 4 1 . 7 3 4 4 3 . . 6 5 2 4 3 5 3 . 6 4 2 4 Max Kills in Single Turn 5 | . 1 2 . 1 1 2 4 1 3 2 . 1 1 1 2 1 1 1 5 2 1 1 2 4 1 . 1 1 1 1 Gunslinging 1 | . . . . . . . . . . . . . . . . . . . . 1 . . . . . . . . . . Exploded 3 | . . . . . 1 . 2 1 3 . . . . 1 1 1 . . 2 1 . . . 3 1 . . 1 . 1 Melee 1 | . . . . . 1 1 1 . . . . . 1 . . 1 . . . 1 1 1 . 1 . . . . . . Uniques/NPCs Destroyed . | . . . . . . . . . . . . . . . . . . . . . . . . . . . . . . . Combat | -11 -10 -10 -10 -9 -8 -8 -8 -8 -7 -7 -7 -7 -6 -6 -5 -5 -4 -4 -4 -4 -3 -3 -3 -3 -3 -2 -2 -2 -2 -2 -------- Run | Yrd Mat Min Exi Min Mat Gar Mat Gar Fac Was Fac Gar Fac Gar Fac Gar Fac Was Fac Gar Res Gar Res Qua Gar Res Gar Res Tes Frg Hostile Shots Fired 3478 | . 93 24 . 3 202 149 134 56 56 . . 198 61 149 122 289 16 . 181 298 30 181 157 218 167 22 74 129 45 424 Missed 919 | . 30 3 . 1 59 43 36 11 25 . . 62 16 27 23 64 6 . 44 130 7 40 37 68 41 9 18 28 16 75 Hits 2559 | . 63 21 . 2 143 106 98 45 31 . . 136 45 122 99 225 10 . 137 168 23 141 120 150 126 13 56 101 29 349 Melee 57 | . . . . 2 . . 5 6 . . . 1 . 3 . 8 . . . . . . 1 . . . 3 . . 28 Projectile 2502 | . 63 21 . . 143 106 93 39 31 . . 135 45 119 99 217 10 . 137 168 23 141 119 150 126 13 53 101 29 321 AOE 20 | . . . . . . . . . . . . 9 . 1 2 1 . . . . . . . . . . . 3 . 4 Critical Strikes 131 | . . . . 1 5 7 4 3 . . . . 4 3 1 10 1 . 8 8 3 6 10 9 6 . 4 . 3 35 Part Disruptions 4 | . . . . . . . . . . . . . . . . . . . . . 1 . 1 . 2 . . . . . Damage Taken 40907 | . 594 176 . 56 2094 1338 1717 860 261 . . 1568 520 1343 1823 3740 166 19 1810 1794 335 1985 2196 2311 1914 165 776 1802 424 9120 Core 4055 | . 46 7 . . 97 138 173 139 12 . . 53 87 52 66 907 56 19 49 96 15 100 137 196 149 10 29 127 . 1295 Absorbed by Shields 12895 | . . . . . . 68 . . . . . 92 411 615 366 212 . . 1012 1589 188 1583 984 930 1298 170 710 983 335 1349 Reduced by Siege Mode 1238 | . . . . . . . . . . . . . . 67 83 212 . . 45 32 . 108 141 6 24 . 54 118 6 342 Redirected to Shielding 115 | . 2 1 . . . . . . . . . . . . . . . . . . . . 74 38 . . . . . . Ignored by Resistances 31 | . . . . . . . . . . . . . . . . . . . . . . . . . . . . . 18 13 Regen/Repaired (Parts) 4501 | . 107 . . . 269 . . . . 396 . . 436 . . . . 598 25 . . . . 848 . . 127 . 30 1665 Core Remaining (%) 60 | 100 . . . 78 . . . . . . . 90 . 83 . 2 . . . 80 . . . . 54 . . . . . Volleys Fired 2096 | . 79 11 . 3 104 89 112 43 11 84 1 70 50 74 92 53 . . 101 60 1 65 119 137 155 3 110 139 100 230 Largest 2 | . 2 2 . 2 2 2 2 2 2 2 2 2 1 1 1 2 . . 2 2 1 2 2 2 1 1 1 1 1 2 Hottest 240 | . 60 60 . 46 130 113 130 130 88 150 150 150 90 90 90 124 . . 162 162 120 240 233 233 120 120 120 120 120 200 Shots Fired 2844 | . 158 26 . 6 197 169 180 74 16 160 2 140 51 74 92 59 . . 191 109 1 98 166 136 153 3 111 144 102 226 Gun 719 | . 86 . . 6 101 . 16 25 5 20 2 140 . . . . . . 181 100 . . . . . . . . . 37 Cannon 1785 | . 72 26 . . 96 169 145 41 7 132 . . 44 61 78 45 . . . 1 1 74 142 112 115 2 63 124 81 154 Launcher 46 | . . . . . . . 19 3 1 . . . . . . 6 . . 3 3 . . . 11 . . . . . . Special 294 | . . . . . . . . 5 3 8 . . 7 13 14 8 . . 7 5 . 24 24 13 38 1 48 20 21 35 Kinetic 556 | . 158 26 . 6 112 83 57 25 5 . . . 9 24 34 17 . . . . . . . . . . . . . . Thermal 1913 | . . . . . 85 86 104 41 7 152 2 140 35 37 44 28 . . 181 101 1 74 142 112 115 2 63 124 81 156 Explosive 40 | . . . . . . . 19 3 1 . . . . . . 6 . . 3 3 . . . 5 . . . . . . Electromagnetic 41 | . . . . . . . . . . . . . . . . . . . . . . . . 6 . . . . . 35 Robot Hit Streak 30 | . 10 6 . 3 12 5 10 8 8 13 5 25 30 14 15 13 . . 22 29 . 24 7 18 13 3 17 19 14 20 Robot Miss Streak 6 | . 5 2 . 1 4 5 6 2 1 4 . 5 3 4 3 4 . . 5 4 . 2 3 3 3 . 3 3 3 3 Penetration Max 2 | . . . . . . 1 2 . . . . . . . 1 . . . . . . . . . . . . . . . Secondary Targets 6 | . . . . . 2 . . . . . . . . . . . . . 1 3 . . . . . . . . . . Max Gunslinging Chain 1 | . . . . . 1 . . . . . . . . . . . . . 1 1 . . . . . . . . . . Capacitor 631 | . . . . . . . . . . . . . . . . . . . . . . . . 60 112 2 63 124 81 189 Shots Hit Robots 1888 | . 86 14 . 4 117 75 80 46 7 115 2 100 37 53 59 45 1 5 156 114 29 74 70 67 109 1 87 93 71 171 Core Hits 729 | . 36 6 . 2 58 36 77 14 6 22 . 43 9 15 18 29 . 2 63 53 8 21 26 43 34 1 14 27 16 50 Critical Kills 39 | . . . . . 2 13 5 . . 1 . . 1 2 . . . . . . . 1 1 . 2 . 3 3 1 4 Critical Parts Destroyed 22 | . . . . . 2 13 7 . . . . . . . . . . . . . . . . . . . . . . . Critical Strikes 126 | . 5 1 . . 4 26 12 . . 3 1 11 3 4 1 2 . 1 16 10 4 2 1 5 2 . 3 3 1 5 Burn 36 | . . . . . . . . . . 2 1 11 . . . . . . 14 8 . . . . . . . . . . Meltdown 20 | . . . . . . . 1 . . 1 . . 1 2 . . . . . . . 1 1 . 2 . 3 3 1 4 Destroy 41 | . . . . . 4 26 11 . . . . . . . . . . . . . . . . . . . . . . . Blast 10 | . 5 1 . . . . . . . . . . 2 1 1 . . . . . . . . . . . . . . . Sever 19 | . . . . . . . . . . . . . . 1 . 2 . 1 2 2 4 1 . 5 . . . . . 1 Melee Attacks 293 | . . . . . 7 . 10 10 . . . 30 14 18 . 25 3 5 26 49 36 25 . 13 14 . . . . 8 Impact . | . . . . . . . . . . . . . . . . . . . . . . . . . . . . . . . Slashing 284 | . . . . . 7 . 1 10 . . . 30 14 18 . 25 3 5 26 49 36 25 . 13 14 . . . . 8 Piercing . | . . . . . . . . . . . . . . . . . . . . . . . . . . . . . . . Sneak Attacks 35 | . . . . . 1 . 6 3 . . . . 2 . . . 1 5 6 3 8 . . . . . . . . . Combat Hostiles 3 | . . . . . . . . . . . . . . . . . . . . 3 . . . . . . . . . . Follow-up Attacks . | . . . . . . . . . . . . . . . . . . . . . . . . . . . . . . . Damage Inflicted 67619 | . 1166 266 . 65 2729 1975 4371 1298 339 3414 41 3647 1729 2439 2798 2464 85 445 4928 3879 1711 2702 2661 3494 3864 1 2040 3753 2770 6545 Guns 9568 | . 451 . . 65 1006 . 104 263 47 355 41 1725 . . . . . . 3414 1636 . . . . . . . . . 461 Cannons 38693 | . 715 255 . . 1425 1962 1612 646 53 3059 . . 1354 1753 2404 1119 . . . 40 . 1893 2497 2060 2609 . 2019 3645 2641 4932 Explosions 7135 | . . . . . 102 . 2572 94 239 . . . . . 353 560 . . 712 521 . . . 898 . . . . 120 964 Melee 11590 | . . . . . 167 . . 281 . . . 1918 328 670 . 785 85 445 792 1662 1711 809 . 523 1237 . . . . 177 Ramming 633 | . . 11 . . 29 13 83 14 . . . 4 47 16 41 . . . 10 20 . . 164 13 18 1 21 108 9 11 Kinetic 8149 | . 1166 255 . 65 1133 797 481 263 47 . . . 674 1091 1600 577 . . . . . . . . . . . . . . Thermal 40808 | . . . . . 1298 1165 1235 646 53 3414 41 1725 680 662 952 542 . . 3414 1676 . 1893 2497 2060 2609 . 2019 3645 2641 5941 Explosive 5815 | . . . . . 102 . 2572 94 239 . . . . . 205 560 . . 712 521 . . . 690 . . . . 120 . Electromagnetic 624 | . . . . . . . . . . . . . . . . . . . . . . . . 208 . . . . . 416 Impact . | . . . . . . . . . . . . . . . . . . . . . . . . . . . . . . . Slashing 11590 | . . . . . 167 . . 281 . . . 1918 328 670 . 785 85 445 792 1662 1711 809 . 523 1237 . . . . 177 Piercing . | . . . . . . . . . . . . . . . . . . . . . . . . . . . . . . . Highest Corruption 31 | . 2 2 2 2 . 2 2 6 . . . . 4 4 4 4 . . 3 3 5 6 22 31 29 . 2 7 8 21 Average Corruption 7 | . 1 2 2 2 . 1 1 5 . . . . 3 4 3 4 . . 1 1 4 5 11 28 27 . 1 3 7 10 Corruption Purged 15 | . . . . . . . 2 . . . . . . . . . . . 1 3 . . . 9 . . . . . . Corruption Blocked 2 | . . . . . . . . . . . . . . . . . . . . . . . . 2 . . . . . . Effects 681 | . 5 20 7 4 . 9 13 27 . . . . 36 38 10 16 . . 16 1 1 40 78 92 92 . 20 36 50 70 Message Errors 154 | . 1 7 1 2 . . 2 7 . . . . 12 10 3 4 . . 3 . . 12 15 19 18 . 4 6 14 14 Matter Fused 152 | . . 3 2 . . 1 3 9 . . . . 12 7 4 4 . . 5 1 . 12 17 21 12 . 5 9 10 15 Heat Flow Errors 75 | . . 3 2 . . 1 1 3 . . . . 1 11 . 2 . . 2 . . 3 5 10 14 . 1 4 6 6 Energy Discharges 78 | . . 1 2 1 . 2 3 1 . . . . 4 5 1 1 . . 1 . . 4 7 6 12 . 7 5 6 9 Parts Rejected 11 | . . . . . . 1 . . . . . . . . . 1 . . 1 . . . . 4 1 . . 1 . 2 Parts Fused 8 | . . . . . . . . . . . . . . 1 . . . . . . . 1 1 2 . . . . 1 2 Data Loss (minor) 81 | . 3 1 . 1 . 2 3 4 . . . . 5 . . 2 . . 2 . 1 3 12 6 15 . 2 2 7 10 Data Loss (major) 33 | . 1 1 . . . 1 . 2 . . . . . 2 1 . . . . . . 3 3 6 5 . . 3 2 3 Misfires 29 | . . 4 . . . . . 1 . . . . 1 . . . . . . . . . 5 4 4 . 1 5 3 1 Alerts 17 | . . . . . . 1 . . . . . . 1 2 1 2 . . 1 . . 1 . 3 3 . . 1 . 1 Misdirections 8 | . . . . . . . . . . . . . . . . . . . . . . . 4 1 2 . . . . 1 Weapon Failures 35 | . . . . . . . 1 . . . . . . . . . . . 1 . . 1 9 10 6 . . . 1 6 Overload Shots . | . . . . . . . . . . . . . . . . . . . . . . . . . . . . . . . Overflow Damage 2969 | . 8 17 . . 19 18 136 113 45 . . 47 415 187 151 50 45 67 309 38 364 4 106 70 159 . 24 113 357 107 Projectiles 1479 | . 8 17 . . 11 18 . 83 . . . . 319 129 118 50 . . . . . . 68 3 62 . 24 113 349 107 Explosions 303 | . . . . . 8 . 134 . 45 . . . . . 33 . . . . 8 . . . 67 . . . . 8 . Melee 1187 | . . . . . . . 2 30 . . . 47 96 58 . . 45 67 309 30 364 4 38 . 97 . . . . . Knockbacks 55 | . 17 2 . . 1 8 5 . . . . . 3 8 2 7 . . . . . . . . . . . 2 . . Impact 3 | . . 1 . . . . . . . . . . . . . . . . . . . . . . . . . 2 . . Kinetic 47 | . 14 1 . . 1 8 5 . . . . . 3 7 2 6 . . . . . . . . . . . . . . Secondary 5 | . 3 . . . . . . . . . . . . 1 . 1 . . . . . . . . . . . . . . Self-Inflicted Damage 669 | . . . . . 48 . 294 39 12 . . . . . 20 . . . . . . . . 133 . . . . 123 . Shots 20 | . . . . . 1 . 7 3 1 . . . . . . . . . . . . . . 7 . . . . 1 . Rammed 49 | . . 3 . . 5 3 5 3 . . . 1 2 1 1 . . . 1 2 . . 10 1 1 1 1 7 . 1 Targets Rammed 58 | . . 3 . . 6 4 7 3 . . . 1 5 1 1 . . . 1 3 . . 10 1 1 1 1 7 1 1 Kicked 1 | . . . . . . . . . . . . . . . . . . . . 1 . . . . . . . . . . Crushed 8 | . . . . . 1 1 2 . . . . . 3 . . . . . . . . . . . . . . . 1 . Highest Temperature 482 | . 66 224 198 . 358 385 336 195 10 312 39 371 199 418 72 118 . 482 228 8 . 356 432 300 380 73 196 410 198 354 Average Temperature 103 | . 27 96 89 . 90 87 90 57 6 89 21 109 57 145 14 39 . 250 82 8 . 141 101 98 138 57 98 99 91 88 Received Heat Transfer 6807 | . 165 . . . 1062 436 540 90 66 . . 365 . 73 247 779 30 . 272 310 . 645 16 282 200 . 56 137 20 1016 Effects 34 | . . . . . . . 1 . . . . 3 . 7 . . . 10 5 . . 1 . . 6 . . 1 . . Shutdowns 9 | . . . . . . . . . . . . . . 3 . . . 4 . . . 1 . . . . . 1 . . Energy Bleed 10 | . . . . . . . 1 . . . . 3 . 2 . . . 1 2 . . . . . 1 . . . . . Interference 10 | . . . . . . . . . . . . . . 2 . . . . 3 . . . . . 5 . . . . . Short Circuit 2 | . . . . . . . . . . . . . . . . . . 2 . . . . . . . . . . . . Damage (major) 3 | . . . . . . . . . . . . . . . . . . 3 . . . . . . . . . . . . Siege Activations 41 | . . . . . . . . . . . . . . 2 4 4 . . 4 2 . 2 7 3 2 . 2 5 1 3 Total Turns 850 | . . . . . . . . . . . . . . 34 80 51 . . 123 98 . 64 145 51 43 . 28 52 8 73 Longest Duration 61 | . . . . . . . . . . . . . . 23 26 22 . . 61 53 . 32 37 39 23 . 22 20 8 31 Martial Activations . | . . . . . . . . . . . . . . . . . . . . . . . . . . . . . . . Shielding Activations . | . . . . . . . . . . . . . . . . . . . . . . . . . . . . . . . Robots Disrupted 3 | . . . . . . . . . . . . . . . . . . . . . . . . . . . . . . 3 Combat Hostiles 3 | . . . . . . . . . . . . . . . . . . . . . . . . . . . . . . 3 Robots Corrupted 4 | . . . . . . . 1 . . . . . . 1 . . . . . . . . . 1 . . . . . 1 Combat Hostiles 1 | . . . . . . . . . . . . . . . . . . . . . . . . 1 . . . . . . Parts Fried 8 | . 3 . . . . . 1 . . . . . . 1 . . . . . . . . . 2 . . . . . 1 Impact Corruptions 3 | . . . . . . . 1 . . . . . . 1 . . . . . . . . 1 . . . . . . . Robots Melted 29 | . . . . . . . 1 . . 1 . 2 1 2 . . . . 2 2 . 1 1 1 2 . 3 4 2 4 Combat Hostiles 28 | . . . . . . . 1 . . 1 . 2 1 2 . . . . 2 2 . 1 1 1 2 . 3 4 1 4 Parts Melted 112 | . . . . . . . . 3 . 2 . 17 3 4 . 2 . . 26 11 . 2 6 7 6 . 8 4 6 5 Heat Transferred 46282 | . . . . . 1728 1554 1702 814 74 4958 148 3546 900 805 1079 666 . . 6253 3256 . 1393 1998 1702 2275 . 1627 2885 2089 4830 Parts Sabotaged . | . . . . . . . . . . . . . . . . . . . . . . . . . . . . . . . Parts Stolen . | . . . . . . . . . . . . . . . . . . . . . . . . . . . . . . . Parts Stripped . | . . . . . . . . . . . . . . . . . . . . . . . . . . . . . . . Power Chain Reactions 3 | . . . . . . . . . . . . . . . . . . . . . . . . . . . . . . 3 Alert | -11 -10 -10 -10 -9 -8 -8 -8 -8 -7 -7 -7 -7 -6 -6 -5 -5 -4 -4 -4 -4 -3 -3 -3 -3 -3 -2 -2 -2 -2 -2 ------- Run | Yrd Mat Min Exi Min Mat Gar Mat Gar Fac Was Fac Gar Fac Gar Fac Gar Fac Was Fac Gar Res Gar Res Qua Gar Res Gar Res Tes Frg Maximum Alert Level 4 | . 1 1 . . 2 4 3 2 1 . . 4 2 2 2 1 . . 1 3 2 3 2 . 3 2 4 2 . 1 Low Security (%) 46 | 100 75 95 . 100 59 . . 1 12 100 100 15 38 42 29 78 100 100 90 8 . . 94 100 13 . . 43 100 64 Level 1 20 | . 24 4 . . 34 14 9 91 87 . . 2 45 20 7 21 . . 9 19 57 14 . . 40 . 16 27 . 35 Level 2 19 | . . . . . 5 25 69 7 . . . 16 16 36 62 . . . . 38 42 54 5 . 15 100 37 29 . . Level 3 10 | . . . . . . 32 21 . . . . 62 . . . . . . . 33 . 31 . . 30 . 37 . . . Level 4 1 | . . . . . . 26 . . . . . 3 . . . . . . . . . . . . . . 8 . . . Level 5 . | . . . . . . . . . . . . . . . . . . . . . . . . . . . . . . . High Security . | . . . . . . . . . . . . . . . . . . . . . . . . . . . . . . . Max Security . | . . . . . . . . . . . . . . . . . . . . . . . . . . . . . . . Peak Influence 1191 | . 289 221 . . 431 1191 936 446 288 83 . 1108 582 686 529 293 177 62 222 1072 603 898 506 129 1022 574 1149 645 107 388 Initial 645 | . . 96 . . . 235 580 196 233 83 . . 581 2 359 21 159 58 . 147 603 212 504 75 92 574 380 645 107 13 Average 306 | . 105 43 . . 153 775 545 312 245 9 . 730 222 298 318 148 163 4 94 555 406 595 87 50 524 551 700 304 29 161 Influence Increases 17570 | . 687 170 . . 1028 1016 1182 310 106 9 . 1318 345 894 1073 534 68 42 975 1035 104 836 655 579 1230 13 1189 594 459 1119 Destroy 0b10 Robot/C 7897 | . 420 120 . . 580 540 630 105 60 . . 555 180 375 405 195 . . 510 498 48 216 288 300 492 . 432 324 180 444 Destroy 0b10 Robot/NC 404 | . 40 . . . 30 5 60 . . . . 24 20 12 20 4 4 . 56 3 15 . 33 9 12 . . 18 15 24 Destroy Leader 1112 | . 88 20 . . 104 10 144 8 16 . . 40 58 32 104 16 . . 104 38 12 12 60 38 30 . 42 44 30 62 Allied During Kill 1934 | . . . . . . . 6 . . . . 314 3 63 62 . . . 233 93 6 32 76 3 310 . 328 73 72 260 Trap Triggered on 0b10 30 | . 10 . . . 20 . . . . . . . . . . . . . . . . . . . . . . . . . Successful Hack 258 | . 16 . . . 21 24 8 . . . . 11 27 11 22 11 . . . 5 . 23 . 29 14 . 14 5 17 . Select Force Hacks 83 | . 60 . . . . . 23 . . . . . . . . . . . . . . . . . . . . . . . Disable Machine 792 | . 15 30 . . 60 30 48 . 24 . . . 12 . 312 36 . . . 9 . . 9 54 18 . . 27 36 72 Anti-Garrison Action 2255 | . . . . . . 200 . 114 . . . 303 . 302 . 76 . . . 270 . 510 . . 240 . 240 . . . Destroy Structure 1854 | . 8 . . . 78 57 179 35 6 9 . 47 21 63 148 88 4 42 60 41 14 16 162 146 69 4 133 94 100 230 Partial Spotted 39 | . . . . . . . . . . . . . . . . . 12 . . . . 18 . . 9 . . . . . Lose Combat Pursuer 912 | . 30 . . . 135 150 84 48 . . . 24 24 36 . 108 48 . 12 78 9 9 27 . 36 9 . 9 9 27 Influence Decreases 17486 | . 439 418 . . 666 187 2070 167 313 248 . 210 1449 212 1728 260 206 209 765 173 893 221 1418 591 331 528 547 1552 626 1059 Entered New Map 4749 | . . 152 . . . 127 611 107 213 156 . . 527 2 327 10 146 109 . 63 469 71 394 60 31 448 127 504 84 11 Time Decay 6708 | . 439 256 . . 476 . 589 . 80 92 . . 699 . 553 . 50 60 511 . 334 . 522 471 . 30 . 583 425 538 Lost Part 1040 | . . 10 . . 30 60 100 60 . . . 10 . 20 50 190 10 . . 40 10 30 40 60 20 10 30 10 10 240 Lost Ally 2528 | . . . . . 10 . 20 . 20 . . 200 30 190 80 60 . 40 254 70 80 120 87 . 280 40 390 180 107 270 Purge Threat 2461 | . . . . . 150 . 750 . . . . . 193 . 718 . . . . . . . 375 . . . . 275 . . Squads Dispatched 89 | . 6 . . . 6 . 12 . . . . . 8 . 8 . . . 6 . 1 . 11 6 . 2 . 14 4 5 Investigation 10 | . 4 . . . . . 2 . . . . . . . 1 . . . 1 . . . 1 1 . . . . . . Extermination 31 | . . . . . . . . . . . . . 7 . 2 . . . 3 . 1 . 4 3 . . . 4 3 4 Reinforcement 29 | . 2 . . . 2 . 4 . . . . . 1 . 3 . . . 2 . . . 5 2 . 1 . 5 1 1 Assault 5 | . . . . . 1 . 3 . . . . . . . 1 . . . . . . . . . . . . . . . Garrison 14 | . . . . . 3 . 3 . . . . . . . 1 . . . . . . . 1 . . 1 . 5 . . Intercept . | . . . . . . . . . . . . . . . . . . . . . . . . . . . . . . . Searches Triggered . | . . . . . . . . . . . . . . . . . . . . . . . . . . . . . . . Construction Impeded 9 | . . . . . . . 3 . . . . . . . 2 . . . . . . . 2 . . . . 2 . . Haulers Reinforced 3 | . . . . . . . . . . . . . . . . . . . 1 . . . 1 . . . . 1 . . Active Scanning Responses . | . . . . . . . . . . . . . . . . . . . . . . . . . . . . . . . Cargo Convoy Interrupts 1 | . . . . . . . . . . . . . 1 . . . . . . . . . . . . . . . . . Stealth | -11 -10 -10 -10 -9 -8 -8 -8 -8 -7 -7 -7 -7 -6 -6 -5 -5 -4 -4 -4 -4 -3 -3 -3 -3 -3 -2 -2 -2 -2 -2 --------- Run | Yrd Mat Min Exi Min Mat Gar Mat Gar Fac Was Fac Gar Fac Gar Fac Gar Fac Was Fac Gar Res Gar Res Qua Gar Res Gar Res Tes Frg Distress Signals 33 | . 1 . . . 4 1 6 . . . . . . . 1 . 1 . 1 . . . 6 1 1 . . 5 2 3 Communications Jammed 52 | . . . . . . . . . . . . . . . . . . . . . 9 . 43 . . . . . . . Distress Signals 46 | . . . . . . . . . . . . . . . . . . . . . 8 . 38 . . . . . . . Times Spotted 879 | . 29 5 . 1 46 35 58 14 8 6 1 35 23 37 46 31 13 5 48 44 13 33 50 39 49 4 59 55 26 66 Peak Tracking Total 9 | . 4 2 . 1 6 6 9 4 4 2 1 7 4 6 5 9 9 3 7 6 7 8 7 7 8 5 8 7 4 9 Tactical Retreats 58 | . 2 . . . 6 8 6 3 . . . 2 1 3 . 5 2 . 1 6 1 1 3 . 2 1 . 1 1 3 Traps | -11 -10 -10 -10 -9 -8 -8 -8 -8 -7 -7 -7 -7 -6 -6 -5 -5 -4 -4 -4 -4 -3 -3 -3 -3 -3 -2 -2 -2 -2 -2 ------- Run | Yrd Mat Min Exi Min Mat Gar Mat Gar Fac Was Fac Gar Fac Gar Fac Gar Fac Was Fac Gar Res Gar Res Qua Gar Res Gar Res Tes Frg Traps Triggered 44 | . 2 . . . . 1 1 2 1 . . 3 1 3 . 1 1 . 1 3 1 3 2 2 4 . 6 2 . 4 Indirectly . | . . . . . . . . . . . . . . . . . . . . . . . . . . . . . . . Trap Hack Attempts 4 | . 4 . . . . . . . . . . . . . . . . . . . . . . . . . . . . . Triggered . | . . . . . . . . . . . . . . . . . . . . . . . . . . . . . . . Disarmed 1 | . 1 . . . . . . . . . . . . . . . . . . . . . . . . . . . . . Reprogrammed 1 | . 1 . . . . . . . . . . . . . . . . . . . . . . . . . . . . . Reused 3 | . 1 . . . 2 . . . . . . . . . . . . . . . . . . . . . . . . . Traps Reconfigurated 8 | . . . . . 2 6 . . . . . . . . . . . . . . . . . . . . . . . . Traps Extracted . | . . . . . . . . . . . . . . . . . . . . . . . . . . . . . . . Installed . | . . . . . . . . . . . . . . . . . . . . . . . . . . . . . . . Triggered 3 | . 1 . . . 2 . . . . . . . . . . . . . . . . . . . . . . . . . Machines | -11 -10 -10 -10 -9 -8 -8 -8 -8 -7 -7 -7 -7 -6 -6 -5 -5 -4 -4 -4 -4 -3 -3 -3 -3 -3 -2 -2 -2 -2 -2 ---------- Run | Yrd Mat Min Exi Min Mat Gar Mat Gar Fac Was Fac Gar Fac Gar Fac Gar Fac Was Fac Gar Res Gar Res Qua Gar Res Gar Res Tes Frg Machines Disabled 111 | . 1 2 . . 4 8 4 2 2 . . 4 1 5 26 5 . . . 5 . 6 1 6 9 . 5 3 4 8 Max in Single Turn 2 | . 1 1 . . 2 2 1 1 2 . . 1 1 1 2 1 . . . 1 . 1 1 1 1 . 1 1 1 1 Garrison Access 1 | . . . . . . . . . . . . . . . . . . . . . . . . . . . . . 1 . Garrison Relay 33 | . . . . . . 2 . 2 . . . 4 . 4 . 2 . . . 4 . 5 . . 6 . 4 . . . Machines Repaired . | . . . . . . . . . . . . . . . . . . . . . . . . . . . . . . . Machines Dismantled . | . . . . . . . . . . . . . . . . . . . . . . . . . . . . . . . Machines Sabotaged . | . . . . . . . . . . . . . . . . . . . . . . . . . . . . . . . Overloaded Fab Kills . | . . . . . . . . . . . . . . . . . . . . . . . . . . . . . . . Hacking | -11 -10 -10 -10 -9 -8 -8 -8 -8 -7 -7 -7 -7 -6 -6 -5 -5 -4 -4 -4 -4 -3 -3 -3 -3 -3 -2 -2 -2 -2 -2 --------- Run | Yrd Mat Min Exi Min Mat Gar Mat Gar Fac Was Fac Gar Fac Gar Fac Gar Fac Was Fac Gar Res Gar Res Qua Gar Res Gar Res Tes Frg Machines Accessed 86 | . 8 1 2 . 6 2 5 2 . . 1 2 10 1 7 1 1 . 3 2 2 4 6 6 3 1 3 2 2 3 Terminals 60 | . 5 . . . 4 2 3 2 . . . 2 5 1 6 1 . . 1 2 1 4 6 4 3 . 3 2 1 2 Fabricators 2 | . . . . . . . . . . . . . 1 . . . . . 1 . . . . . . . . . . . Repair Stations 5 | . 1 . . . 1 . . . . . . . 1 . . . . . . . . . . 1 . . . . . 1 Recycling Units 6 | . 2 . . . . . 1 . . . . . 2 . . . 1 . . . . . . . . . . . . . Scanalyzers . | . . . . . . . . . . . . . . . . . . . . . . . . . . . . . . . Garrison Access 10 | . . . . . 1 . 1 . . . 1 . 1 . 1 . . . 1 . 1 . . 1 . 1 . . 1 . Total Hacks 192 | . 21 1 2 . 19 3 13 4 . . 2 5 23 2 26 1 3 . 6 4 2 5 9 16 6 2 3 3 4 7 Successful 87 | . 9 1 2 . 9 2 7 1 . . 2 1 11 1 11 1 1 . 3 1 1 3 2 8 2 2 3 1 2 . Failed 105 | . 12 . . . 10 1 6 3 . . . 4 12 1 15 . 2 . 3 3 1 2 7 8 4 . . 2 2 7 Catastrophic 25 | . 1 . . . 1 . 4 2 . . . 1 3 . 1 . . . 1 . . 1 4 1 1 . . 1 1 2 Database Lockouts . | . . . . . . . . . . . . . . . . . . . . . . . . . . . . . . . Manual 92 | . 19 . 1 . 15 . 11 1 . . . . 13 . 14 . . . 3 . . . 2 2 . . . 2 2 7 Terminals 143 | . 17 . . . 15 3 10 4 . . . 5 13 2 24 1 . . 2 4 1 5 9 8 6 . 3 3 2 6 Fabricators 2 | . . . . . . . . . . . . . 1 . . . . . 1 . . . . . . . . . . . Repair Stations 15 | . 2 . . . 3 . . . . . . . 3 . . . . . . . . . . 6 . . . . . 1 Recycling Units 10 | . 2 . . . . . 1 . . . . . 4 . . . 3 . . . . . . . . . . . . . Scanalyzers . | . . . . . . . . . . . . . . . . . . . . . . . . . . . . . . . Garrison Access 19 | . . . . . 1 . 2 . . . 2 . 2 . 2 . . . 3 . 1 . . 2 . 2 . . 2 . Terminal Hacks 35 | . 1 1 2 . 1 2 2 1 . . . 1 3 1 6 1 . . . 1 . 3 1 2 2 . 3 1 . . Record 1 | . . . 1 . . . . . . . . . . . . . . . . . . . . . . . . . . . Part Schematic 1 | . . . . . . . . . . . . . . . 1 . . . . . . . . . . . . . . . Robot Schematic 2 | . 1 . . . . . . . . . . . . . 1 . . . . . . . . . . . . . . . Open Door 6 | . . 1 . . . . . . . . . . . . . . . . . 1 . 1 . 1 1 . 1 . . . Branch Access Points 3 | . . . . . . . . . . . . . . . 1 . . . . . . . 1 . . . . 1 . . Emergency Access Points 5 | . . . . . . 1 . . . . . . . 1 . 1 . . . . . 1 . . . . 1 . . . Machine Index 1 | . . . . . . . . . . . . . 1 . . . . . . . . . . . . . . . . . Terminal Index 2 | . . . . . . . . . . . . . . . 1 . . . . . . . . 1 . . . . . . Unreport Threat 6 | . . . . . 1 . 2 . . . . . 1 . 2 . . . . . . . . . . . . . . . Zone Layout 1 | . . . . . . . . . . . . . 1 . . . . . . . . . . . . . . . . . Garrison Registry 3 | . . . . . . 1 . . . . . . . . . . . . . . . 1 . . 1 . . . . . Patrol Navigation 3 | . . . . . . . . 1 . . . 1 . . . . . . . . . . . . . . 1 . . . Proto ID Catalog 1 | . . . 1 . . . . . . . . . . . . . . . . . . . . . . . . . . . Fabricator Hacks 1 | . . . . . . . . . . . . . . . . . . . 1 . . . . . . . . . . . Network Status 1 | . . . . . . . . . . . . . . . . . . . 1 . . . . . . . . . . . Repair Station Hacks 10 | . 2 . . . 2 . . . . . . . 2 . . . . . . . . . . 4 . . . . . . Scan Component 5 | . 1 . . . 1 . . . . . . . 1 . . . . . . . . . . 2 . . . . . . Repair 5 | . 1 . . . 1 . . . . . . . 1 . . . . . . . . . . 2 . . . . . . Recycling Unit Hacks 3 | . . . . . . . 1 . . . . . 1 . . . 1 . . . . . . . . . . . . . Process 1 | . . . . . . . . . . . . . 1 . . . . . . . . . . . . . . . . . Retrieve Components 2 | . . . . . . . 1 . . . . . . . . . 1 . . . . . . . . . . . . . Scanalyzer . | . . . . . . . . . . . . . . . . . . . . . . . . . . . . . . . Garrison Access Hacks 15 | . . . . . 1 . 1 . . . 2 . 2 . 2 . . . 2 . 1 . . 1 . 2 . . 1 . Unlock Access 9 | . . . . . 1 . 1 . . . 1 . 1 . 1 . . . 1 . 1 . . 1 . 1 . . . . Seal Access 1 | . . . . . . . . . . . . . . . . . . . . . . . . . . . . . 1 . Coupler Status 5 | . . . . . . . . . . . 1 . 1 . 1 . . . 1 . . . . . . 1 . . . . Unauthorized Hacks 23 | . 6 . . . 5 . 3 . . . . . 3 . 3 . . . . . . . 1 1 . . . . 1 . Terminals 19 | . 4 . . . 5 . 2 . . . . . 2 . 3 . . . . . . . 1 1 . . . . 1 . Track 3 | . . . . . . . 1 . . . . . 1 . . . . . . . . . . 1 . . . . . . Assimilate 3 | . . . . . 2 . . . . . . . . . . . . . . . . . 1 . . . . . . . Botnet 4 | . 1 . . . . . . . . . . . 1 . 2 . . . . . . . . . . . . . . . Operators 3 | . . . . . . . 1 . . . . . . . 1 . . . . . . . . . . . . . 1 . Skim 6 | . 3 . . . 3 . . . . . . . . . . . . . . . . . . . . . . . . . Fabricators 1 | . . . . . . . . . . . . . 1 . . . . . . . . . . . . . . . . . Liberate 1 | . . . . . . . . . . . . . 1 . . . . . . . . . . . . . . . . . Repair Stations . | . . . . . . . . . . . . . . . . . . . . . . . . . . . . . . . Recycling Units 2 | . 2 . . . . . . . . . . . . . . . . . . . . . . . . . . . . . Tunnel 2 | . 2 . . . . . . . . . . . . . . . . . . . . . . . . . . . . . Scanalyzers . | . . . . . . . . . . . . . . . . . . . . . . . . . . . . . . . Garrison Access 1 | . . . . . . . 1 . . . . . . . . . . . . . . . . . . . . . . . Eject 1 | . . . . . . . 1 . . . . . . . . . . . . . . . . . . . . . . . Data Cores Recovered 1 | . . . . . . . . . . . . . . . . . . . . . . . 1 . . . . . . . Used 1 | . . . . . . . . . . . . . . . . . . . . . . . 1 . . . . . . . Hacking Detections 64 | . 6 . . . 6 1 3 2 . . 1 2 7 . 5 1 1 . 3 1 2 2 5 5 2 . 2 2 2 3 Full Trace Events 9 | . 2 . . . . . . 1 . . . 2 . . 1 . . . 1 1 . . 1 . . . . . . . Feedback Events 1 | . 1 . . . . . . . . . . . . . . . . . . . . . . . . . . . . . Corruption 1 | . 1 . . . . . . . . . . . . . . . . . . . . . . . . . . . . . Feedback Blocked . | . . . . . . . . . . . . . . . . . . . . . . . . . . . . . . . Robot Schematics Acquired 4 | . 1 . . . . . . . . . . . . . 1 . . . . . . . . . . . . . 2 . Robots Built . | . . . . . . . . . . . . . . . . . . . . . . . . . . . . . . . Authchips . | . . . . . . . . . . . . . . . . . . . . . . . . . . . . . . . Time . | . . . . . . . . . . . . . . . . . . . . . . . . . . . . . . . Total Robot Build Rating . | . . . . . . . . . . . . . . . . . . . . . . . . . . . . . . . Part Schematics Acquired 7 | . . . . . . . . . . . . . . . 1 . . . . . . . . . . . . . 5 1 Parts Built . | . . . . . . . . . . . . . . . . . . . . . . . . . . . . . . . Authchips . | . . . . . . . . . . . . . . . . . . . . . . . . . . . . . . . Time . | . . . . . . . . . . . . . . . . . . . . . . . . . . . . . . . Total Part Build Rating . | . . . . . . . . . . . . . . . . . . . . . . . . . . . . . . . Parts Repaired 5 | . 1 . . . 1 . . . . . . . 1 . . . . . . . . . . 2 . . . . . . Time 238 | . 26 . . . 38 . . . . . . . 56 . . . . . . . . . . 118 . . . . . . Parts Recycled . | . . . . . . . . . . . . . . . . . . . . . . . . . . . . . . . Recycled Matter 27 | . . . . . . . . . . . . . 27 . . . . . . . . . . . . . . . . . Retrieved Matter . | . . . . . . . . . . . . . . . . . . . . . . . . . . . . . . . Retrieved Components 10 | . . . . . . . 9 . . . . . . . . . 1 . . . . . . . . . . . . . Parts Scanalyzed . | . . . . . . . . . . . . . . . . . . . . . . . . . . . . . . . Part Schematics Acquired . | . . . . . . . . . . . . . . . . . . . . . . . . . . . . . . . Parts Damaged . | . . . . . . . . . . . . . . . . . . . . . . . . . . . . . . . Bothacking | -11 -10 -10 -10 -9 -8 -8 -8 -8 -7 -7 -7 -7 -6 -6 -5 -5 -4 -4 -4 -4 -3 -3 -3 -3 -3 -2 -2 -2 -2 -2 ------------ Run | Yrd Mat Min Exi Min Mat Gar Mat Gar Fac Was Fac Gar Fac Gar Fac Gar Fac Was Fac Gar Res Gar Res Qua Gar Res Gar Res Tes Frg Used RIF Installer 11 | . . . . . . 2 . 1 . . . 1 . 2 . 1 . . . 1 . 1 . . 1 . 1 . . . Coupler Efficiency 1 | . . . . . . . . . . . . . . 1 . . . . . . . . . . . . . . . . Hotswap 1 | . . . . . . . . . . . . 1 . . . . . . . . . . . . . . . . . . Threat Obfuscator 2 | . . . . . . 1 . . . . . . . . . . . . . 1 . . . . . . . . . . Zone Cloak 1 | . . . . . . . . . . . . . . 1 . . . . . . . . . . . . . . . . Robot Detection 1 | . . . . . . . . . . . . . . . . . . . . . . . . . 1 . . . . . Watcher Feeds 1 | . . . . . . . . 1 . . . . . . . . . . . . . . . . . . . . . . Structural Interface 1 | . . . . . . . . . . . . . . . . 1 . . . . . . . . . . . . . . Autoassimilate 2 | . . . . . . . . . . . . . . . . . . . . . . 1 . . . . 1 . . . Robots Hacked 166 | . . . . . . . 4 4 2 6 . . 1 10 8 5 . . 3 5 . 11 10 7 14 1 27 15 13 20 Non-combat 22 | . . . . . . . 1 . 2 . . . 1 . 3 . . . 1 . . . 3 . . . 1 2 2 6 Combat 144 | . . . . . . . 3 4 . 6 . . . 10 5 5 . . 2 5 . 11 7 7 14 1 26 13 11 14 Autoassimilated 13 | . . . . . . . . . . . . . . . . . . . . . . 1 . . 1 . 2 5 2 2 Robot Hacks Applied 182 | . . . . . . . 8 4 2 6 . . 3 10 13 6 . . 5 5 . 10 13 10 13 1 26 15 11 21 parse_system 13 | . . . . . . . . . . . . . . . . 2 . . . . . . 1 1 1 . 2 3 . 3 no_distress 3 | . . . . . . . . . . . . . . . . . . . . . . . . . . . . . . 3 find_chute 2 | . . . . . . . . . 1 . . . . . 1 . . . . . . . . . . . . . . . ignore_repairs 2 | . . . . . . . . . . . . . . . . . . . . . . . . . . . . . . 2 drop_inventory 3 | . . . . . . . . . . . . . . . 1 . . . 1 . . . . . . . . 1 . . purge_threat 14 | . . . . . . . 4 . . . . . 1 . 4 . . . . . . . 3 . . . . 2 . . block_reporting 3 | . . . . . . . . . 1 . . . 1 . . . . . . . . . . . . . . . 1 . disable_scanner 3 | . . . . . . . . . . . . . . . . . . . . . . . . . . . . . 3 . locate_prototypes 1 | . . . . . . . . . . . . . . . . . . . . . . . . . . . . . . 1 ignore_targets 6 | . . . . . . . . . . 6 . . . . . . . . . . . . . . . . . . . . find_garrison 1 | . . . . . . . . . . . . . . . . . . . 1 . . . . . . . . . . . disrupt_area 3 | . . . . . . . . . . . . . . . . . . . . 3 . . . . . . . . . . amplify_resonance 21 | . . . . . . . . 1 . . . . . 1 3 . . . . . . 1 2 4 2 . 4 3 . . reboot_system 1 | . . . . . . . . 1 . . . . . . . . . . . . . . . . . . . . . . overwrite_iff 25 | . . . . . . . 2 . . . . . . 3 . 1 . . . . . 3 . 4 2 . 6 2 . 2 streamctrl_high 1 | . . . . . . . . 1 . . . . . . . . . . . . . . . . . . . . . . formatsys_low 13 | . . . . . . . 1 . . . . . 1 . 2 . . . 1 . . . 1 1 . . 1 . 2 3 formatsys_high 67 | . . . . . . . 1 1 . . . . . 6 2 3 . . 2 2 . 6 6 . 8 1 13 4 5 7 Relay Couplers Released 138 | . . . . . . 10 3 8 . . . 13 . 15 . 10 . . . 15 . 24 . . 23 . 14 . 3 . Ejected 3 | . . . . . . . 3 . . . . . . . . . . . . . . . . . . . . . . . Machine Destruction 131 | . . . . . . 10 . 8 . . . 13 . 15 . 10 . . . 15 . 20 . . 23 . 14 . 3 . Programmers 4 | . . . . . . . . . . . . . . . . . . . . . . 4 . . . . . . . . Attached 45 | . . . . . . . 3 3 . 1 . . 1 4 1 5 . . . 4 . 5 3 . 6 . 2 2 2 3 Fabnet Peak Effective % . | . . . . . . . . . . . . . . . . . . . . . . . . . . . . . . . Robots Rewired 36 | . . . . . . . . . . . . . 1 7 . . . . . 2 . 2 . . 13 . 7 . 1 3 Allies Hacked 13 | . . . . . . . . . . . . . . . . . . . 2 . . 3 . . . . 2 . 3 3 Hacks Repelled . | . . . . . . . . . . . . . . . . . . . . . . . . . . . . . . . Allies | -11 -10 -10 -10 -9 -8 -8 -8 -8 -7 -7 -7 -7 -6 -6 -5 -5 -4 -4 -4 -4 -3 -3 -3 -3 -3 -2 -2 -2 -2 -2 -------- Run | Yrd Mat Min Exi Min Mat Gar Mat Gar Fac Was Fac Gar Fac Gar Fac Gar Fac Was Fac Gar Res Gar Res Qua Gar Res Gar Res Tes Frg Total Allies 203 | . . . . . 2 . 4 2 . 19 . . 5 16 4 4 . 19 3 6 . 12 7 5 26 1 30 11 10 17 Largest Group 19 | . . . . . 2 1 2 1 1 19 15 15 3 4 3 3 . 19 15 4 4 5 5 2 12 9 13 8 5 6 Highest-Rated Group 835 | . . . . . 36 26 45 26 15 465 367 367 87 170 96 99 . 684 534 183 169 272 368 87 724 519 818 548 476 835 Highest-Rated Ally 344 | . . . . . 26 26 29 26 15 35 31 31 40 46 32 47 . 50 49 80 47 64 142 49 68 68 116 116 344 344 Total Orders 73 | . . . . . 4 8 . 4 . . . . 2 10 . . . . 3 . . . 4 . 3 . 3 . 5 27 STAY 33 | . . . . . 3 4 . 3 . . . . 1 5 . . . . 2 . . . 3 . 2 . 1 . 1 8 FOLLOW 22 | . . . . . 1 4 . 1 . . . . 1 5 . . . . 1 . . . 1 . 1 . 1 . 1 5 AID 14 | . . . . . . . . . . . . . . . . . . . . . . . . . . . 1 . 1 12 EXPLORE 2 | . . . . . . . . . . . . . . . . . . . . . . . . . . . . . 1 1 RETURN 2 | . . . . . . . . . . . . . . . . . . . . . . . . . . . . . 1 1 Ally Attacks 1359 | . . . . . . . 20 . 3 33 . 207 9 71 39 12 . 124 85 44 12 36 75 9 121 10 155 62 47 185 Total Damage 45113 | . . . . . . . 270 . 39 556 . 3131 132 1999 2273 267 . 3417 2212 1117 363 1319 2953 281 5593 371 6049 2413 2150 8208 Kills 213 | . . . . . . . 3 . . 2 . 26 1 13 17 . . 6 16 14 1 7 16 1 22 . 27 9 6 26 Allies Corrupted 21 | . . . . . . . . . . . . 1 . 1 . . . . 1 . . 2 3 . . . 5 3 3 2 Allies Melted 2 | . . . . . . . . . . . . . . . . . . . . . . . . . . . 1 . 1 . Intel | -11 -10 -10 -10 -9 -8 -8 -8 -8 -7 -7 -7 -7 -6 -6 -5 -5 -4 -4 -4 -4 -3 -3 -3 -3 -3 -2 -2 -2 -2 -2 ------- Run | Yrd Mat Min Exi Min Mat Gar Mat Gar Fac Was Fac Gar Fac Gar Fac Gar Fac Was Fac Gar Res Gar Res Qua Gar Res Gar Res Tes Frg Active Infowar (turns) 2780 | . . . . . . . 3 . . . . . . . . . . . . 450 503 543 1152 129 . . . . . . Optics 209 | . . . . . . . . . . . . . . . . . . . . . . . 209 . . . . . . . Structural 3 | . . . . . . . 3 . . . . . . . . . . . . . . . . . . . . . . . Jamming 2566 | . . . . . . . . . . . . . . . . . . . . 450 503 543 943 127 . . . . . . ECM 2 | . . . . . . . . . . . . . . . . . . . . . . . . 2 . . . . . . Robot Analysis Total . | . . . . . . . . . . . . . . . . . . . . . . . . . . . . . . . Derelict Logs Recovered 2 | . . 2 . . . . . . . . . . . . . . . . . . . . . . . . . . . . Drone Launches 4 | . . . . . . . . . . . . . . . . . . . . . . . . . . . . . 2 2 Drone Recoveries 3 | . . . . . . . . . . . . . . . . . . . . . . . . . . . . . 2 1 Exploration | -11 -10 -10 -10 -9 -8 -8 -8 -8 -7 -7 -7 -7 -6 -6 -5 -5 -4 -4 -4 -4 -3 -3 -3 -3 -3 -2 -2 -2 -2 -2 ------------- Run | Yrd Mat Min Exi Min Mat Gar Mat Gar Fac Was Fac Gar Fac Gar Fac Gar Fac Was Fac Gar Res Gar Res Qua Gar Res Gar Res Tes Frg Turns Passed 41464 | 72 1349 1476 406 294 2797 1691 1842 1045 161 792 78 1790 3137 1880 1605 861 110 1226 1961 1906 753 1656 1925 1641 1730 67 1970 1804 1457 1982 Spaces Moved 16269 | 43 634 557 238 118 822 559 645 328 79 300 31 843 1127 653 626 541 137 647 635 726 282 886 912 638 608 25 729 613 545 742 Core 412 | 5 . . . . . . . . . . . . . . . 322 75 . . . . . . . . . . . . 10 Treads 14047 | 38 634 557 238 118 822 559 645 328 79 300 31 843 1127 507 22 151 11 486 635 409 . 799 912 638 608 25 729 613 545 638 Legs 505 | . . . . . . . . . . . . . . . . . . . . 317 188 . . . . . . . . . Wheels 931 | . . . . . . . . . . . . . . 146 604 . . . . . 94 87 . . . . . . . . Hover 306 | . . . . . . . . . . . . . . . . . 51 161 . . . . . . . . . . . 94 Flight 68 | . . . . . . . . . . . . . . . . 68 . . . . . . . . . . . . . . Fastest Speed 24 | 50 160 160 160 240 160 240 155 155 155 155 160 160 240 195 210 24 50 60 145 155 110 110 155 150 150 233 150 233 233 56 Average Speed 196 | 147 160 160 168 240 236 242 204 164 155 158 160 170 240 231 212 105 71 165 228 211 208 155 159 156 222 233 232 237 237 203 Slowest Speed 450 | 160 160 160 240 240 243 243 240 235 155 160 160 240 240 240 240 450 250 225 235 255 255 240 160 237 233 233 237 241 241 233 Overloaded Moves 45 | . . . . . . . . . . . . . . . . 45 . . . . . . . . . . . . . . Propulsion Burnouts . | . . . . . . . . . . . . . . . . . . . . . . . . . . . . . . . Robots Hopped . | . . . . . . . . . . . . . . . . . . . . . . . . . . . . . . . Potential Cave-ins 9 | . . . . . . . 2 . . . . . . . . . . . . . . . 3 4 . . . . . . Cave-ins Triggered 2 | . . . . . . . . . . . . . 1 . . . . . . . . . . 1 . . . . . . Exploration Rate (%) 53 | 3 97 99 61 38 59 61 51 38 2 85 2 85 30 84 37 56 6 96 24 94 11 82 42 88 76 2 96 38 61 46 Regions Visited 30 Branch Regions 6 Pre-discovered Areas 5 | . 2 2 1 . . . . . . . . . . . . . . . . . . . . . . . . . . . Known Exits Taken 11 | . . . . . 1 . 1 . . . 1 . 1 . 1 . . . 1 . 1 . 1 1 . 1 . 1 . . Unknown Exits Taken 6 | 1 1 1 1 1 . . . . . . . . . . . . . . . . . . . . . . . . 1 . Scrap Searched 3 | . . 3 . . . . . . . . . . . . . . . . . . . . . . . . . . . . Spaces Dug 228 | . . . . . 15 . 37 2 1 . . 7 15 . 13 2 2 . 14 4 7 9 40 24 5 2 4 18 3 4 Terrain Destroyed 939 | . . . . . 87 11 290 17 5 6 . 7 21 3 44 40 2 . 29 14 7 19 83 90 34 2 8 40 42 38 Melee 51 | . . . . . 3 . 1 2 . . . 7 9 . . 2 2 . 14 4 6 . . 1 . . . . . . Projectile 464 | . . . . . 40 11 82 . 1 6 . . 12 3 19 12 . . . 3 1 19 83 57 34 2 8 40 15 16 AOE 424 | . . . . . 44 . 207 15 4 . . . . . 25 26 . . 15 7 . . . 32 . . . . 27 22 Terrain Rammed . | . . . . . . . . . . . . . . . . . . . . . . . . . . . . . . . Walls Destroyed . | . . . . . . . . . . . . . . . . . . . . . . . . . . . . . . . Machines Disabled . | . . . . . . . . . . . . . . . . . . . . . . . . . . . . . . . Actions | -11 -10 -10 -10 -9 -8 -8 -8 -8 -7 -7 -7 -7 -6 -6 -5 -5 -4 -4 -4 -4 -3 -3 -3 -3 -3 -2 -2 -2 -2 -2 --------- Run | Yrd Mat Min Exi Min Mat Gar Mat Gar Fac Was Fac Gar Fac Gar Fac Gar Fac Was Fac Gar Res Gar Res Qua Gar Res Gar Res Tes Frg Total 23532 | 49 818 1121 245 123 1464 724 967 742 102 471 57 1033 1489 930 803 734 146 797 922 974 447 1093 1225 1193 969 32 1002 960 706 1194 Wait 3605 | . 75 537 . . 451 57 135 332 5 38 25 49 266 58 37 73 . 117 100 47 115 60 133 339 100 . 123 162 24 147 Move 16249 | 42 633 556 237 117 822 558 644 327 79 299 31 842 1127 652 626 540 137 646 635 725 282 885 912 637 607 25 728 612 544 742 Hop . | . . . . . . . . . . . . . . . . . . . . . . . . . . . . . . . Pick Up 240 | 1 11 6 2 . 18 4 14 7 1 9 . 16 9 13 10 8 2 2 13 11 3 11 11 8 23 . 9 10 8 . Fast Attach 156 | 6 4 2 . 1 5 2 6 3 . 7 . 3 1 1 4 14 2 13 9 9 4 7 7 19 10 . 2 5 1 9 Attach 133 | . 1 . 1 1 6 7 12 6 1 1 . 2 5 9 14 11 . 1 3 6 1 4 4 7 2 2 6 1 2 17 Detach 76 | . 2 1 . . 1 . 4 . . 5 . 3 4 3 5 3 . 2 4 3 1 4 4 8 6 . 2 2 . 9 Swap 247 | . 5 . 1 1 25 1 18 10 5 7 . 5 4 9 4 3 . 2 18 19 . 13 15 13 16 . 6 8 15 24 Drop 212 | . 4 5 4 . 19 2 4 . . 21 . 11 3 8 9 1 2 9 9 14 4 14 10 9 21 . 3 14 8 4 Fire 2096 | . 79 11 . 3 104 89 112 43 11 84 1 70 50 74 92 53 . . 101 60 1 65 119 137 155 3 110 139 100 230 Melee 293 | . . . . . 7 . 10 10 . . . 30 14 18 . 25 3 5 26 49 36 25 . 13 14 . . . . 8 Ram 3 | . . . . . . . . . . . . . . . 1 . . . . . . . 1 . 1 . . . . . Kick 1 | . . . . . . . . . . . . . . . . . . . . 1 . . . . . . . . . . Crush 55 | . . 3 . . 6 4 7 3 . . . 1 5 1 . . . . 1 2 . . 9 1 1 1 1 7 1 1 Escape Stasis 19 | . . . . . . . . . . . . . . 2 . 2 . . 2 . . . . 1 4 . 8 . . . Rewire 143 | . . . . . . . 1 1 . . . 1 1 82 1 1 . . 1 28 . 5 . 1 9 1 4 . 3 3 Trap 4 | . 4 . . . . . . . . . . . . . . . . . . . . . . . . . . . . . Miscellaneous . | . . . . . . . . . . . . . . . . . . . . . . . . . . . . . . . Route ------- -11/Scrapyard -10/Materials (discovered 4 exits: [*Mat x3] / *Min) -10/Mines (discovered 4 exits: [*Mat x2] / *Exi / [*Sub]) -10/Exiles -9/Mines -8/Materials (discovered 3 exits: [*Fac x2] / Gar) -8/Garrison (discovered 3 exits: *Mat x3) -8/Materials (discovered 2 exits: [*Fac] / Gar) -8/Garrison -7/Factory -7/Waste -7/Factory -7/Garrison (discovered 3 exits: *Fac x3) -6/Factory (discovered 4 exits: *Fac / [*Ext x2] / Gar) -6/Garrison (discovered 3 exits: *Fac x3) -5/Factory (discovered 5 exits: *Fac x2 / Upp x2 / Gar) -5/Garrison -4/Factory -4/Waste -4/Factory (discovered 2 exits: *Res / Gar) -4/Garrison (discovered 3 exits: *Res x3) -3/Research (discovered 2 exits: *Res / Gar) -3/Garrison (discovered 3 exits: *Res x3) -3/Research (discovered 3 exits: *Res / *Qua x2) -3/Quarantine (discovered 2 exits: *Res / Gar) -3/Garrison (discovered 3 exits: *Res x3) -2/Research -2/Garrison (discovered 3 exits: *Res x3) -2/Research (discovered 3 exits: [*Acc] / *Tes x2) -2/Testing (discovered 3 exits: [*Acc] / [*Sec] / *Frg) -2/Protoforge History --------- Turn | Location | Event 4 | -11/Scrapyard | Discovered new exit (range 15) 73 | -11/Scrapyard | Entered Materials 263 | -10/Materials | Discovered new exit (range 16) 302 | -10/Materials | Build established: Mutant 632 | -10/Materials | Discovered new exit (range 14) 910 | -10/Materials | Discovered new exit (range 15) 1289 | -10/Materials | Repaired Lgt. Treads 1306 | -10/Materials | Discovered new exit (range 6) 1422 | -10/Materials | Entered Mines 1565 | -10/Mines | Met a Derelict who couldn't figure out how to use a Trap Extractor 2146 | -10/Mines | Discovered new exit (range 14) 2279 | -10/Mines | Found a damaged Exp. Sensor Array with a note attached 2294 | -10/Mines | Found Prototype Device 2453 | -10/Mines | Deemed a non-threat by the Exiles lab entrance 2453 | -10/Mines | Discovered new exit (range 5) 2500 | -10/Mines | Discovered new exit (range 13) 2560 | -10/Mines | A weapon hastily lodged in a ceiling crevice suddenly fell to the ground 2634 | -10/Mines | Learned location of Mines (-9) 2759 | -10/Mines | Discovered new exit (range 6) 2898 | -10/Mines | Entered Exiles 2938 | -10/Exiles | Met 8R-AWN 2967 | -10/Exiles | Met EX-HEX 3008 | -10/Exiles | Met EX-BIN 3029 | -10/Exiles | Aligned with FarCom system 3031 | -10/Exiles | Given EX-Vault access code 3067 | -10/Exiles | Opened EX-Vault 3090 | -10/Exiles | Found Longsword +1 3094 | -10/Exiles | Found Trap Reconfigurator 3127 | -10/Exiles | Warned to stay clear of 0b10 Research branches 3136 | -10/Exiles | Exiles lab attacked by MAIN.C 3194 | -10/Exiles | Learned location of Zion (-7) 3284 | -10/Exiles | Discovered new exit (range 10) 3304 | -10/Exiles | Stole two prototypes: Trap Reconfigurator, Longsword +1 3304 | -10/Exiles | Entered Mines 3344 | -9/Mines | Assembled infested the area 3349 | -9/Mines | Assisted by a Guerilla fighting off Assembled 3557 | -9/Mines | Discovered new exit (range 10) 3598 | -9/Mines | Entered Materials 3598 | -8/Materials | Evolved 4 slots: Propulsion x1, Utility x3 3601 | -8/Materials | Identified Exp. Sensor Array 3952 | -8/Materials | Discovered new exit (range 14) 4187 | -8/Materials | Build established: Scavenger-Mutant 5116 | -8/Materials | Build established: Mutant 5205 | -8/Materials | Garrison activated, responded to threat 5598 | -8/Materials | First assault squad dispatched 5627 | -8/Materials | Repaired Hvy. Armor Plating 5690 | -8/Materials | Discovered new exit (range 7) 6395 | -8/Materials | Identified exit to Garrison 6395 | -8/Materials | Entered Garrison 6395 | -8/Garrison | Accompanied by 1 ally 6463 | -8/Garrison | Triggered checkpoint 6563 | -8/Garrison | Triggered checkpoint 6611 | -8/Garrison | Triggered checkpoint 6704 | -8/Garrison | Triggered checkpoint 6753 | -8/Garrison | Triggered checkpoint 7082 | -8/Garrison | Garrison Relay disabled 7096 | -8/Garrison | Garrison Relay disabled 7153 | -8/Garrison | Discovered new exit (range 5) 7211 | -8/Garrison | Triggered checkpoint 7362 | -8/Garrison | Discovered new exit (range 23) 7362 | -8/Garrison | Discovered new exit (range 61) 7362 | -8/Garrison | Discovered new exit (range 70) 7606 | -8/Garrison | Lost 3 parts (2n1u) 7678 | -8/Garrison | Installed Relay Interface Framework 7949 | -8/Garrison | Triggered checkpoint 8062 | -8/Garrison | Expanded RIF knowledge: Threat Obfuscation 8086 | -8/Garrison | Entered Materials 8486 | -8/Materials | First assault squad dispatched 8600 | -8/Materials | Core integrity fell below 50% 9048 | -8/Materials | Discovered new exit (range 4) 9325 | -8/Materials | Garrison activated, responded to threat 9388 | -8/Materials | Destroyed 9 combat bots 9552 | -8/Materials | Destroyed 7 combat bots 9920 | -8/Materials | Identified exit to Garrison 9928 | -8/Materials | Entered Garrison 9928 | -8/Garrison | Accompanied by 1 ally 9996 | -8/Garrison | Triggered checkpoint 10042 | -8/Garrison | Core integrity fell below 20% 10138 | -8/Garrison | P-60 Hacker assimilated allied Administrator 3b 10201 | -8/Garrison | Build established: Bothacker-Mutant 10204 | -8/Garrison | Lost 5 parts (1p2n1u1w) 10329 | -8/Garrison | Garrison Relay disabled 10413 | -8/Garrison | Triggered checkpoint 10485 | -8/Garrison | Triggered checkpoint 10573 | -8/Garrison | Triggered checkpoint 10826 | -8/Garrison | Expanded RIF knowledge: Watcher Feeds 10895 | -8/Garrison | Garrison Relay disabled 10945 | -8/Garrison | Discovered new exit (range 12) 10973 | -8/Garrison | Entered Factory 10973 | -7/Factory | Accompanied by 1 ally 10973 | -7/Factory | Evolved 2 slots: Propulsion x1, Utility x1 10975 | -7/Factory | FarCom data flow suspended 11134 | -7/Factory | Sucked down chute 11134 | -7/Factory | Entered Waste 11186 | -7/Waste | Spotted C-40 Crusher 11192 | -7/Waste | Spotted C-40 Crusher 11200 | -7/Waste | Spotted C-40 Crusher 11208 | -7/Waste | Spotted C-40 Crusher 11252 | -7/Waste | Spotted C-40 Crusher 11261 | -7/Waste | Spotted C-40 Crusher 11470 | -7/Waste | Destroyed C-40 Crusher 11492 | -7/Waste | Destroyed C-40 Crusher 11503 | -7/Waste | Found Damper Plating 11538 | -7/Waste | Destroyed C-40 Crusher 11562 | -7/Waste | Destroyed C-40 Crusher 11695 | -7/Waste | Warlord forces began an assault 11848 | -7/Waste | Allies destroyed C-40 Crusher 11875 | -7/Waste | Discovered new exit (range 16) 11926 | -7/Waste | Entered Factory 11926 | -7/Factory | Accompanied by 15 allies 11979 | -7/Factory | Identified exit to Garrison 12004 | -7/Factory | Entered Garrison 12004 | -7/Garrison | Accompanied by 15 allies 12084 | -7/Garrison | Triggered checkpoint 12126 | -7/Garrison | Garrison Relay disabled 12278 | -7/Garrison | Triggered checkpoint 12302 | -7/Garrison | Triggered checkpoint 12308 | -7/Garrison | Triggered checkpoint 12313 | -7/Garrison | Triggered checkpoint 12381 | -7/Garrison | Discovered new exit (range 15) 12440 | -7/Garrison | Triggered checkpoint 12487 | -7/Garrison | Garrison Relay disabled 12488 | -7/Garrison | Lost 5 allies 12550 | -7/Garrison | Triggered checkpoint 12590 | -7/Garrison | Expanded RIF knowledge: Hotswap 12601 | -7/Garrison | Garrison Relay disabled 12824 | -7/Garrison | Lost 4 allies 12877 | -7/Garrison | Destroyed 7 combat bots 12906 | -7/Garrison | Triggered checkpoint 12955 | -7/Garrison | Discovered new exit (range 10) 13134 | -7/Garrison | Discovered new exit (range 13) 13185 | -7/Garrison | Triggered checkpoint 13732 | -7/Garrison | Garrison Relay disabled 13794 | -7/Garrison | Entered Factory 13794 | -6/Factory | Evolved 2 slots: Power x1, Utility x1 14054 | -6/Factory | Build established: Botlord-Mutant 14531 | -6/Factory | Crushed by falling debris 14623 | -6/Factory | Repaired Lyr. Heavy Armor Plating 14775 | -6/Factory | Discovered new exit (range 15) 14952 | -6/Factory | Cargo convoy interrupted 15081 | -6/Factory | Allied Derelicts emerged from ambush trap array 15157 | -6/Factory | Discovered new exit (range 10) 15228 | -6/Factory | Lost 3 allies 15311 | -6/Factory | Discovered new exit (range 25) 16931 | -6/Factory | Identified exit to Garrison 16931 | -6/Factory | Entered Garrison 16931 | -6/Garrison | Accompanied by 1 ally 16943 | -6/Garrison | Spotted B-90 Cyclops 17029 | -6/Garrison | Garrison Relay disabled 17063 | -6/Garrison | Triggered checkpoint 17161 | -6/Garrison | Triggered checkpoint 17206 | -6/Garrison | Triggered checkpoint 17217 | -6/Garrison | Triggered checkpoint 17353 | -6/Garrison | Triggered checkpoint 17400 | -6/Garrison | Garrison Relay disabled 17550 | -6/Garrison | Discovered new exit (range 15) 17795 | -6/Garrison | Triggered checkpoint 17865 | -6/Garrison | Garrison Relay disabled 18046 | -6/Garrison | Lost 3 allies 18226 | -6/Garrison | Expanded RIF knowledge: Zone Cloak 18429 | -6/Garrison | Discovered new exit (range 11) 18559 | -6/Garrison | Triggered checkpoint 18620 | -6/Garrison | Discovered new exit (range 15) 18666 | -6/Garrison | Expanded RIF knowledge: Coupler Efficiency 18735 | -6/Garrison | Garrison Relay disabled 18811 | -6/Garrison | Entered Factory 18811 | -5/Factory | Accompanied by 3 allies 18811 | -5/Factory | Evolved 2 slots: Utility x2 19526 | -5/Factory | Discovered new exit (range 27) 19778 | -5/Factory | Discovered new exit (range 21) 19916 | -5/Factory | Identified exit to Upper Caves 20011 | -5/Factory | First assault squad dispatched 20289 | -5/Factory | Garrison activated, responded to threat 20378 | -5/Factory | Lost 3 parts (2n1u) 20416 | -5/Factory | Identified exit to Garrison 20416 | -5/Factory | Entered Garrison 20578 | -5/Garrison | Triggered checkpoint 20628 | -5/Garrison | Garrison Relay disabled 20801 | -5/Garrison | Triggered checkpoint 20856 | -5/Garrison | Triggered checkpoint 20898 | -5/Garrison | Triggered checkpoint 20901 | -5/Garrison | Triggered checkpoint 20933 | -5/Garrison | Released all parts (9) 20961 | -5/Garrison | Lost 9 parts (4p2n2u1w) 21038 | -5/Garrison | Core integrity fell below 50% 21095 | -5/Garrison | Lost 3 allies 21103 | -5/Garrison | Lost 8 parts (2p3n1u2w) 21119 | -5/Garrison | Core integrity fell below 20% 21154 | -5/Garrison | Expanded RIF knowledge: Structural Interface 21160 | -5/Garrison | Triggered checkpoint 21178 | -5/Garrison | Garrison Relay disabled 21271 | -5/Garrison | Discovered new exit (range 13) 21277 | -5/Garrison | Entered Factory 21277 | -4/Factory | Evolved 2 slots: Utility x2 21335 | -4/Factory | Build established: Mutant 21387 | -4/Factory | Manually triggered Chute Trap 21387 | -4/Factory | Sucked down chute 21387 | -4/Factory | Entered Waste 21409 | -4/Waste | Spotted C-40 Crusher 21409 | -4/Waste | Spotted C-40 Crusher 21416 | -4/Waste | Spotted C-40 Crusher 21439 | -4/Waste | Spotted C-40 Crusher 21443 | -4/Waste | Spotted C-40 Crusher 21443 | -4/Waste | Spotted C-40 Crusher 21450 | -4/Waste | Warlord forces began an assault 21458 | -4/Waste | Allies destroyed C-40 Crusher 21468 | -4/Waste | Allies destroyed C-40 Crusher 21470 | -4/Waste | Allies destroyed C-40 Crusher 21474 | -4/Waste | Allies destroyed C-40 Crusher 21496 | -4/Waste | Allies destroyed C-40 Crusher 21513 | -4/Waste | Allies destroyed C-40 Crusher 21605 | -4/Waste | Found Damper Plating 21654 | -4/Waste | Discovered new exit (range 16) 22613 | -4/Waste | Entered Factory 22613 | -4/Factory | Accompanied by 15 allies 23059 | -4/Factory | Lost 5 allies 23229 | -4/Factory | Build established: Scavenger-Mutant 23455 | -4/Factory | Lost 4 allies 24254 | -4/Factory | Discovered new exit (range 36) 24573 | -4/Factory | Identified exit to Garrison 24574 | -4/Factory | Entered Garrison 24574 | -4/Garrison | Accompanied by 2 allies 24724 | -4/Garrison | Found embedded Infiltrators 24746 | -4/Garrison | Triggered checkpoint 24798 | -4/Garrison | Expanded RIF knowledge: Threat Obfuscation 24900 | -4/Garrison | Triggered checkpoint 25043 | -4/Garrison | Spotted B-86 Titan 25044 | -4/Garrison | Triggered checkpoint 25093 | -4/Garrison | Destroyed B-86 Titan 25137 | -4/Garrison | Build established: Bothacker-Mutant 25286 | -4/Garrison | Triggered checkpoint 25297 | -4/Garrison | Garrison Relay disabled 25359 | -4/Garrison | Discovered new exit (range 10) 25597 | -4/Garrison | Build established: Botlord-Mutant 25670 | -4/Garrison | Triggered checkpoint 25797 | -4/Garrison | Garrison Relay disabled 25899 | -4/Garrison | Discovered new exit (range 10) 26018 | -4/Garrison | Triggered checkpoint 26205 | -4/Garrison | Triggered checkpoint 26270 | -4/Garrison | Triggered checkpoint 26288 | -4/Garrison | Garrison Relay disabled 26440 | -4/Garrison | Triggered checkpoint 26448 | -4/Garrison | Discovered new exit (range 13) 26480 | -4/Garrison | Entered Research 26480 | -3/Research | Accompanied by 4 allies 26480 | -3/Research | Evolved 2 slots: Propulsion x2 26575 | -3/Research | Spotted B-86 Titan 26627 | -3/Research | Lost 3 allies 26799 | -3/Research | Discovered new exit (range 35) 27233 | -3/Research | Identified exit to Garrison 27233 | -3/Research | Entered Garrison 27257 | -3/Garrison | Triggered checkpoint 27294 | -3/Garrison | Garrison Relay disabled 27352 | -3/Garrison | Spotted B-86 Titan 27370 | -3/Garrison | Destroyed B-86 Titan 27411 | -3/Garrison | Triggered checkpoint 27419 | -3/Garrison | Triggered checkpoint 27425 | -3/Garrison | Triggered checkpoint 27445 | -3/Garrison | Warlord forces raided the area 27479 | -3/Garrison | Lost 4 allies 27551 | -3/Garrison | Triggered checkpoint 27590 | -3/Garrison | Discovered new exit (range 10) 27603 | -3/Garrison | Triggered checkpoint 27613 | -3/Garrison | Spotted B-86 Titan 27613 | -3/Garrison | Spotted B-86 Titan 27651 | -3/Garrison | Garrison Relay disabled 27764 | -3/Garrison | Garrison Relay disabled 27893 | -3/Garrison | Triggered checkpoint 27938 | -3/Garrison | Garrison Relay disabled 27960 | -3/Garrison | Garrison Relay disabled 28046 | -3/Garrison | Discovered new exit (range 12) 28046 | -3/Garrison | Discovered new exit (range 44) 28046 | -3/Garrison | Discovered new exit (range 54) 28164 | -3/Garrison | Expanded RIF knowledge: Autoassimilate 28545 | -3/Garrison | Spotted B-86 Titan 28553 | -3/Garrison | P-80 Master assimilated allied Warden 8c 28587 | -3/Garrison | Destroyed B-86 Titan 28608 | -3/Garrison | Found Relay Coupler [Proto] 28615 | -3/Garrison | Found Relay Coupler [Proto] 28619 | -3/Garrison | Found Relay Coupler [Proto] 28889 | -3/Garrison | Entered Research 28889 | -3/Research | Accompanied by 2 allies 29121 | -3/Research | System corruption reached 10% 29289 | -3/Research | Identified exit to Quarantine 29599 | -3/Research | Discovered new exit (range 23) 29695 | -3/Research | Lost 3 allies 29868 | -3/Research | Garrison activated, responded to threat 29983 | -3/Research | Spotted B-86 Titan 30247 | -3/Research | Found Gamma Bomb Array 30814 | -3/Research | Entered Quarantine 30910 | -3/Quarantine | Crushed by falling debris 30941 | -3/Quarantine | Lost 3 parts (1p2u) 31012 | -3/Quarantine | Cryocooling Duct disabled 31027 | -3/Quarantine | Ambient heat levels rising (+20) 31027 | -3/Quarantine | Non-combat units ordered to evacuate 31291 | -3/Quarantine | Spotted Alpha 7 31322 | -3/Quarantine | Destroyed Alpha 7 31326 | -3/Quarantine | Found Prototype Device 31326 | -3/Quarantine | Identified Exp. ECM Suite 31350 | -3/Quarantine | Found Prototype Processor 31449 | -3/Quarantine | Repaired Lyr. Heavy Armor Plating 31517 | -3/Quarantine | Repaired Imp. Heavy Treads 31667 | -3/Quarantine | Found Quantum Capacitor 32049 | -3/Quarantine | System corruption reached 30% 32157 | -3/Quarantine | Found Alien Artifact 32157 | -3/Quarantine | Identified Phase Redirector 32214 | -3/Quarantine | Found Alien Artifact 32276 | -3/Quarantine | Discovered new exit (range 3) 32434 | -3/Quarantine | Found Alien Artifact 32455 | -3/Quarantine | Identified exit to Garrison 32455 | -3/Quarantine | Entered Garrison 32514 | -3/Garrison | Triggered checkpoint 32716 | -3/Garrison | Garrison Relay disabled 32859 | -3/Garrison | Spotted B-86 Titan 32863 | -3/Garrison | Triggered checkpoint 32867 | -3/Garrison | Triggered checkpoint 32880 | -3/Garrison | Allies destroyed B-86 Titan 32913 | -3/Garrison | Lost 3 allies 33051 | -3/Garrison | Discovered new exit (range 10) 33063 | -3/Garrison | Triggered checkpoint 33081 | -3/Garrison | Garrison Relay disabled 33306 | -3/Garrison | Discovered new exit (range 6) 33306 | -3/Garrison | Discovered new exit (range 66) 33306 | -3/Garrison | Discovered new exit (range 75) 33397 | -3/Garrison | Triggered checkpoint 33483 | -3/Garrison | Identified Exp. Targeting Computer 33517 | -3/Garrison | Garrison Relay disabled 33631 | -3/Garrison | Triggered checkpoint 33658 | -3/Garrison | Triggered checkpoint 33729 | -3/Garrison | Garrison Relay disabled 33788 | -3/Garrison | Spotted B-86 Titan 33815 | -3/Garrison | Destroyed B-86 Titan 33935 | -3/Garrison | Triggered checkpoint 33955 | -3/Garrison | Expanded RIF knowledge: Robot Detection 34009 | -3/Garrison | Lost 6 allies 34009 | -3/Garrison | Garrison Relay disabled 34037 | -3/Garrison | Garrison Relay disabled 34145 | -3/Garrison | Rescued a captive Derelict 34146 | -3/Garrison | Rescued a captive Derelict 34185 | -3/Garrison | Entered Research 34185 | -2/Research | Accompanied by 9 allies 34185 | -2/Research | Evolved 2 slots: Power x1, Utility x1 34252 | -2/Research | Identified exit to Garrison 34252 | -2/Research | Entered Garrison 34252 | -2/Garrison | Accompanied by 6 allies 34300 | -2/Garrison | Found embedded Infiltrators 34426 | -2/Garrison | Lost 7 allies 34547 | -2/Garrison | Garrison Relay disabled 34558 | -2/Garrison | Triggered checkpoint 34675 | -2/Garrison | Spotted B-90 Cyclops 34695 | -2/Garrison | Destroyed B-90 Cyclops 34713 | -2/Garrison | Triggered checkpoint 34720 | -2/Garrison | Triggered checkpoint 34761 | -2/Garrison | P-80 Master assimilated allied G-73 Enforcer 34784 | -2/Garrison | Triggered checkpoint 34787 | -2/Garrison | Lost 14 allies 34948 | -2/Garrison | Discovered new exit (range 3) 35018 | -2/Garrison | Triggered checkpoint 35109 | -2/Garrison | Garrison Relay disabled 35154 | -2/Garrison | Triggered checkpoint 35304 | -2/Garrison | Triggered checkpoint 35348 | -2/Garrison | Spotted B-86 Titan 35360 | -2/Garrison | Destroyed B-86 Titan 35376 | -2/Garrison | Rewired B-86 Titan 35492 | -2/Garrison | Discovered new exit (range 10) 35768 | -2/Garrison | Triggered checkpoint 35817 | -2/Garrison | Garrison Relay disabled 35870 | -2/Garrison | Expanded RIF knowledge: Autoassimilate 35903 | -2/Garrison | Discovered new exit (range 2) 36222 | -2/Garrison | Entered Research 36222 | -2/Research | Accompanied by 8 allies 36584 | -2/Research | P-80 Master assimilated allied Warden 9l 36614 | -2/Research | Lost 7 allies 37093 | -2/Research | Spotted B-90 Cyclops 37111 | -2/Research | Destroyed B-90 Cyclops 37354 | -2/Research | Garrison activated, responded to threat 37497 | -2/Research | Identified exit to Testing 37831 | -2/Research | Discovered new exit (range 26) 37913 | -2/Research | Garrison activated, responded to threat 38026 | -2/Research | Entered Testing 38026 | -2/Testing | Accompanied by 4 allies 38131 | -2/Testing | Rewired PL-7EMO1CFMT6 38420 | -2/Testing | Lost 3 allies 38422 | -2/Testing | P-80 Master assimilated allied Terminator 9c 38686 | -2/Testing | Discovered new exit (range 29) 38704 | -2/Testing | Found Prototype Ballistic Gun 38729 | -2/Testing | Identified Subatomic Replicator 38729 | -2/Testing | Identified Hyp. Multirail 38729 | -2/Testing | Identified Dimensional Node Initializer 38743 | -2/Testing | Found Corrupted Prototype Device 38750 | -2/Testing | Identified Femtoactuators 38833 | -2/Testing | Lost 4 allies 38961 | -2/Testing | Found Prototype Energy Gun 38962 | -2/Testing | Identified Tachyon Dispersion Ray 39272 | -2/Testing | Spotted Fortress 39277 | -2/Testing | Assimilated Fortress with formatsys_high 39463 | -2/Testing | Discovered new exit (range 6) 39463 | -2/Testing | Discovered new exit (range 6) 39483 | -2/Testing | Entered Protoforge 39483 | -2/Protoforge | Accompanied by 2 allies 39526 | -2/Protoforge | Superfortress began startup sequence 39629 | -2/Protoforge | Spotted Hotshot 39637 | -2/Protoforge | Spotted Hotshot 39642 | -2/Protoforge | Spotted Hotshot 39646 | -2/Protoforge | Spotted Hotshot 39648 | -2/Protoforge | Spotted Hotshot 39665 | -2/Protoforge | Spotted Hotshot 39668 | -2/Protoforge | Destroyed Hotshot 39671 | -2/Protoforge | Spotted Hotshot 39678 | -2/Protoforge | Allies destroyed Hotshot 39691 | -2/Protoforge | Destroyed Hotshot 39703 | -2/Protoforge | Allies destroyed Hotshot 39811 | -2/Protoforge | Spotted Hotshot 39855 | -2/Protoforge | Spotted Hotshot 39858 | -2/Protoforge | Spotted Hotshot 39859 | -2/Protoforge | Spotted Hotshot 39937 | -2/Protoforge | Autoassimilated Hotshot with RIF 39942 | -2/Protoforge | Allies destroyed Hotshot 39955 | -2/Protoforge | Allies destroyed Hotshot 39956 | -2/Protoforge | Destroyed Hotshot 40218 | -2/Protoforge | Spotted B-90 Cyclops 40253 | -2/Protoforge | Destroyed B-90 Cyclops 40583 | -2/Protoforge | Spotted Overlord 40584 | -2/Protoforge | Assimilated Overlord with formatsys_high 40698 | -2/Protoforge | Spotted AP7-3 40698 | -2/Protoforge | Spotted AP7-3 40702 | -2/Protoforge | System corruption reached 10% 40717 | -2/Protoforge | Allies destroyed AP7-3 40735 | -2/Protoforge | Destroyed AP7-3 40736 | -2/Protoforge | Lost 3 allies 41221 | -2/Protoforge | Spotted Immortal 41225 | -2/Protoforge | Spotted Immortal 41238 | -2/Protoforge | Spotted Striker 41243 | -2/Protoforge | Spotted Decapitator 41251 | -2/Protoforge | Spotted Decapitator 41273 | -2/Protoforge | Assimilated Immortal with formatsys_high 41278 | -2/Protoforge | Allies destroyed Decapitator 41294 | -2/Protoforge | Lost 4 allies 41315 | -2/Protoforge | Spotted V993-c 41315 | -2/Protoforge | Spotted V206-y 41339 | -2/Protoforge | Spotted V810-s 41342 | -2/Protoforge | Spotted V512-l 41353 | -2/Protoforge | Destroyed V206-y 41365 | -2/Protoforge | Core integrity fell below 50% 41369 | -2/Protoforge | Destroyed V512-l 41419 | -2/Protoforge | Lost 15 parts (3p5n5u2w) 41421 | -2/Protoforge | Spotted Decapitator 41421 | -2/Protoforge | Spotted Decapitator 41421 | -2/Protoforge | Spotted Decapitator 41425 | -2/Protoforge | Core integrity fell below 20% 41441 | -2/Protoforge | Spotted V021-t 41441 | -2/Protoforge | Spotted V537-h 41446 | -2/Protoforge | Spotted Immortal 41446 | -2/Protoforge | Spotted Immortal 41447 | -2/Protoforge | Autoassimilated Immortal with RIF 41452 | -2/Protoforge | Spotted V833-i 41465 | -2/Protoforge | Destroyed by V021-t with Multirail Last Messages --------------- 41452_ Closed Research Cell breached. 41453_ Immortal reactivates. 41455_ System corrupted: Energy discharge (-22). 41455_ V833-i springs to life. 41455_ V021-t springs to life. 41456_ Penetrated by Slug. 41456_ Exp. Antigrav System destroyed. 41456_ Machine disabled. 41456_ Slug penetrates Reinforced Barrier. 41456_ Slug penetrates Research Cell. 41456_ Research Cell breached. 41456_ V833-i shuts down. 41458_ Immortal suffers critical hit (Impale). 41460_ Attempting to rewire V833-i. 41460_ V833-i cannot be rewired. 41462_ Immortal suffers critical hit (Impale). 41463_ Penetrated by Slug. 41464_ Immortal suffers critical hit (Impale). 41465_ Adv. Cooling System destroyed. 41465_ Penetrated by Slug. Map ----- +----------------------------------------------------+ | ?????????????????????????????????????????????????? | | ?????????????????????????????????????????????????? | | ?????????????????????????????????????????????????? | | ?????????????????????????????????????????????????? | | ?????????????????????????????????????????????????? | | ?????????????????????????????????????????????????? | | ?????????????????????????????????????????????????? | | ?????????????????????????????????????????????????? | | ?????????????????????????????????????????????????? | | ?????????????????????????????????????????????????? | | ?????????????????????????????????????????????????? | | ?????????????????????????????????????????????????? | | ?????????????????????????????????????????????????? | | ?????????????????????????????????????????????????? | | ?????????????????????????????????????????????????? | | ?????????????????????????????????????????????????? | | ####?????????????????????????????????????????????? | | ?????????????????????????????????????????????? | | ???????????????#########?????????????????????? | | ???????????????# #?????????????????????? | | # #???????????????? * #?????????????????????? | | # #?????????????????? V #???##????????????????? | | #^ #???????????????????# ### ###??????????????? | | # #???????????????????" l "#??????????????? | | # #?????????????????#""V l "#??????????????? | | # ################### @ ""#??????????????? | | # """"#??????????????? | | # VV """#??????????????? | | # #########++######## ""#??????????????? | | # #??????" ???# "#??????????????? | | # #?????#" " """" ""##??????????????? | | # #?????#" " " " " ****"#??????????????? | | # #?????#"""""""# " "** ** "#??????????????? | | # #?????######### #####"""""""#??????????????? | | # #??????????????####????########??????????????? | | # #????????????????????????????????????????????? | | # #????????????????????????????????????????????? | | # #????????????????????????????????????????????? | | # #????????????????????????????????????????????? | | # #????????????????????????????????????????????? | | # #????????????????????????????????????????????? | | # #????????????????????????????????????????????? | | # #????????????????????????????????????????????? | | # #????????????????????????????????????????????? | | # #????????????????????????????????????????????? | | # #????????????????????????????????????????????? | | # ################?????????????????????????????? | | # ??????????????????????????? | | # ??????????????????????????? | | # ########### #????????????????????????????? | +----------------------------------------------------+ Best States ------------- Heat Dissipation 122 Coolant Potential 220 Energy Generation 69 Energy Capacity 690 Matter Stores 300 Matter Capacity 300 Sight Range 23 Terrain Scan Density 10 Jamming Range 14 Base Temperature (-) 200 Corruption Block 20 Armor Coverage 2850 Resistance: EM 90 Core Shielding 20 Propulsion Shielding 33 Utility Shielding 66 Melee Speed Boost 50 Phase Shifting 15 Evasion (%) 55 Targeting Accuracy 12 Recoil Reduction 6 Offensive Hacking 10 Defensive Hacking 12 Relay Coupler Types 5 Relay Coupler Value 178 Item Schematics ----------------- Adv. Plasma Cannon | -5/Factory | Hacked Plasma Lance | -2/Testing | Archive Stealth Drone Bay | -2/Testing | Archive Exp. Signal Interpreter | -2/Testing | Archive Hvy. Dispersion Rifle | -2/Testing | Archive Com. Particle Reactor | -2/Testing | Archive Adv. Dynamic Insulation System | -2/Protoforge | Archive Robot Schematics ------------------ M-13 Machinist | -10/Materials | Hacked S-27 Virus | -5/Factory | Hacked K-01 Serf | -2/Testing | Archive R-06 Scavenger | -2/Testing | Archive Fabricated ------------ Nothing Repaired ---------- Lgt. Treads | 23% | -10/Materials Hvy. Armor Plating | 10% | -8/Materials Lyr. Heavy Armor Plating | 41% | -6/Factory Lyr. Heavy Armor Plating | 39% | -3/Quarantine Imp. Heavy Treads | 28% | -3/Quarantine Alien Tech Used ----------------- Phase Redirector Achievements -------------- None Challenges ------------ None Game ------ Seed DisintegrationSapperBay Manual? 0 Play Time 04:38:21 Cumulative 681.1 hours Start 2025.05.08 @ 16:00:50 End 2025.05.09 @ 18:34:19 Sessions 11 Manual Loads 0 Difficulty Rogue Special Mode None Game No. 363 Rogue 363 Adventurer 0 Explorer 0 Win Type - Total 55 Types 37/4/5/2/1/1/3/1/1/0 Lore% 87 Gallery% 82 Achievement% 91 Wizard Run 0 Options --------- Layout 0 ASCII 0 Keyboard 1 Movement Numpad Keybinds 0 Fullscreen 2 Font 18/SmallcapsGlow Map View 76x50 Zoom Use 0% Tactical HUD 1 Map Filters NONE Filters NONE Steam 1 RUN: 935c537d-9cad-4544-bd79-54c23a5ae277